Workbook

Sheet Menu

Sheet OptimumFR
A1: FICHE TECHNIQUE DE LA COGENERATION OPTIMALE
A3: Chaufferie actuelle
A5: Rendement considéré : | B5: 0.8
A7: Cogénération
A8: Marque : | B8: Etude de
A9: Type : | B9: marché 2005
A10: Combustible : | B10: gaz/gas
A11: Puissance nominale électrique (hors auxiliaires électriques) : | B11: 5 | C11: kWé
A12: Puissance appelée par les auxiliaires électriques : | B12: 0.1 | C12: kWé
A13: Puissance nominale thermique : | B13: 11.41577061 | C13: kWth
A14: Rendement électrique à charge nominale : | B14: 0.279
A15: Rendement électrique à mi-charge : | B15: 0.251
A16: Rendement thermique à charge nominale : | B16: 0.637
A17: Rendement moyen électrique : | B17: 0.27342
A19: Rendement moyen chaleur : | B19: 0.637
A21: Rendement moyen de fonctionnement : | B21: =B17+B19 -> 0.91042
A23: Nombre d'heures de fonctionnement : | B23: 8759.75 | C23: heures/an
A24: Nombre de démarrages : | B24: 0 | C24: démarrages
A26: BILAN ENERGETIQUE
A28: Energie électrique consommée avant cogénération : | B28: 4956554 | C28: kWhé/an
A29: Combustible consommé avant cogénération : | B29: =IF(B5=0,0,B30/B5) -> 766500 | C29: kWhcomb/an
A30: Besoins thermiques nets avant cogénération : | B30: =SUM(VarDeriv!$C$2:$C$35041)/4 -> 613200 | C30: kWhth/an | F30: Injection électrique | J30: 0.8
A31: Energie primaire consommée par la cogénération : | B31: =IF(B17=0,0,B38/B17) -> 160188.5378 | C31: kWhcomb/an | F31: Pas de rejet chaleur | J31: 0.6
A32: Chaleur utile produite par la cogénération : | B32: =B31*B19 -> 102040.0986 | C32: kWhth/an | J32: 0.8
C33: kWhé/an
A34: Economie combustible correspondante pour la chaufferie : | B34: =IF(B5=0,0,B32/B5) -> 127550.1232 | C34: kWhcomb/an | F34: Région wallonne | J34: 0
A35: Chaleur utile encore à produire par la chaufferie : | B35: 511159.9014 | C35: kWhth/an | E35: Prix : | F35: 75 | G35: €
A36: Consommation correspondante par la chaufferie : | B36: =IF(B5=0,0,B35/B5) -> 638949.8768 | C36: kWhcomb/an | J36: 00:00:00
C37: kWhth/an
A38: Energie électrique produite par la cogénération : | B38: 43798.75 | C38: kWhé/an | F38: Forfait | J38: 23:45:00
C39: kWhé/an
A40: dont énergie électrique revendue au réseau : | B40: 0 | C40: kWhé/an
A41: dont énergie électrique auto-consommée : | B41: =B38-B40 -> 43798.75 | C41: kWhé/an | J41: Temps de retour
A42: Energie électrique consommée après cogénération : | B42: 4912755.25 | C42: kWhé/an | F42: 110
F43: 115.5 | J43: Désactivé
A44: BILAN ECONOMIQUE | F44: 40 | J44: -
A46: Situation actuelle sans cogénération | J46: -
A49: Coûts | J49: -
B50: 218416.191
A51: Montant facture électricité : | B51: 545220.94 | C51: €/an | F51: 32.8
B52: 81102.31783
A53: Montant facture combustible : | B53: 25141.2 | C53: €/an | F53: 32.8
A55: Montant facture énergie globale : | B55: =B51+B53 -> 570362.14 | C55: €/an
A57: Situation future avec cogénération
A60: Coûts
B61: 1328170.73
A62: Montant facture électricité : | B62: 567423.2314 | C62: €/an
B63: 109012.8716
A64: Montant facture combustible : | B64: 26211.74 | C64: €/an
B65: 14385.32479
A66: Montant entretien pour la cogénération : | B66: 1927.145 | C66: €/an | M66: 0 | N66: 1 | O66: 2 | P66: 3 | Q66: 4 | R66: 5 | S66: 6 | T66: 7 | U66: 8 | V66: 9 | W66: 10
A68: Montant facture énergie globale : | B68: =IF(B64="Inconnue","Inconnue",B62+B64+B66) -> 595562.1164 | C68: €/an | K68: =Param!AX2 -> 0.03 | L68: gain élec | M68: =B51-B62+B73 -> -22202.29138 | N68: =$M68*(1+$K68)^N$66 -> -22868.36012 | O68: -23554.41092 | P68: -24261.04325 | Q68: -24988.87454 | R68: -25738.54078 | S68: -26510.697 | T68: -27306.01791 | U68: -28125.19845 | V68: -28968.95441 | W68: -29838.02304
A71: Gain | K71: =0 -> 0 | L71: gain CV | M71: =B77 -> 1298.85675 | N71: =$M71*(1+$K71)^N$66 -> 1298.85675 | O71: 1298.85675 | P71: 1298.85675 | Q71: 1298.85675 | R71: 1298.85675 | S71: 1298.85675 | T71: 1298.85675 | U71: 1298.85675 | V71: 1298.85675 | W71: 1298.85675
B72: 1656.109652
A73: Revente de l'électricité injectée : | B73: 0 | C73: €/an | K73: =Param!AY2 -> 0.03 | L73: dépense comb | M73: =-(B64-B53) -> -1070.539998 | N73: =$M73*(1+$K73)^N$66 -> -1102.656198 | O73: -1135.735884 | P73: -1169.80796 | Q73: -1204.902199 | R73: -1241.049265 | S73: -1278.280743 | T73: -1316.629165 | U73: -1356.12804 | V73: -1396.811882 | W73: -1438.716238
A75: Economie annuelle sans C.V. : | B75: =IF(B68="Inconnue","Inconnue",B55-B68+B73) -> -25199.97637 | C75: €/an | K75: =Param!AZ2 -> 0.02 | L75: dépense entretiens | M75: =-B66 -> -1927.145 | N75: =$M75*(1+$K75)^N$66 -> -1965.6879 | O75: -2005.001658 | P75: -2045.101691 | Q75: -2086.003725 | R75: -2127.723799 | S75: -2170.278275 | T75: -2213.683841 | U75: -2257.957518 | V75: -2303.116668 | W75: -2349.179002
A76: Taux d'économie en CO2 : | B76: 0.3954014669 | K76: =Param!BA2 -> 0.05 | L76: =L83 -> 5.707925454 | M76: =-B87 -> -24425.4864 | N76: =IF(N66<=$L$76,SUM(N68:N75),IF((N66-$L$76)<1,($L$76-(N66-1))*SUM(N68:N75),0)) -> -24637.84746 | O76: -25396.29171 | P76: -26177.09615 | Q76: -26980.92372 | R76: -27808.4571 | S76: -20289.42618 | T76: 0 | U76: 0 | V76: 0 | W76: 0
A77: Certificats verts : | B77: 1298.85675 | C77: €/an | L77: =B23 -> 8759.75
B78: -1131314.341
A79: Economie annuelle avec C.V. : | B79: -23901.11962 | C79: €/an | L79: =Param!AW2 -> 50000 | M79: =NPV(0.05,N76:T76) -> -128238.7704
A81: Economie annuelle avec C.V. sans pointe annuelle en hiver:
B82: 262338.529
A83: Investissement groupe cogéneration & stockage de chaleur éventuel : | B83: 21808.47 | C83: € | L83: =L79/L77 -> 5.707925454 | M83: -96924.684 | N83: 26178.81612 | O83: 26739.23269 | P83: 27333.18935 | Q83: 27962.47347 | R83: 28628.96404 | S83: 29334.63621 | T83: =SUM(T68:T75) -> -29537.47417
A84: Facteur de sur-investissement : | B84: 0.4 | M84: =NPV(0.05,N83:T83) -> 119131.4791
A85: Investissement BRUT : | B85: =B83*(1+B84) -> 30531.858 | C85: €
A86: Aide à l'investissement : | B86: 6106.3716 | C86: €
A87: Investissement NET : | B87: 24425.4864 | C87: € | M87: =M76+M79-(T76/1.05^7)+T76/(1.05^L76) -> -152664.2568
B88: -8560437.084
A89: Temps de Retour Simple (TRS) : | B89: Negatif | C89: années
B90: Introuvable
A91: Valeur Actualisée Nette (VAN) des gains : | B91: -152705.4016 | C91: €/durée vie
A92: Taux de Rentabilité Interne (TRI) : | B92: =IRR(M76:W76) ->  | C92: %/an
A93: Détails de la facturation électrique après cogénération
B94: 26185.94426
A95: Pour la puissance appelée : | B95: 0 | C95: €/an | D95: 26373.33983
A96: Pour la consommation d'électricité : | B96: 0 | C96: €/an
A97: Pour l'utilisation du réseau (+ redevance) : | B97: 0 | C97: €/an
A98: Pour les surcharges diverses : | B98: 0 | C98: €/an
A99: Partie pour le fournisseur : | B99: 0 | C99: €/an
A100: Partie pour le GRD : | B100: 0 | C100: €/an
A101: Partie pour le GRT : | B101: 0 | C101: €/an
B102: Désactive
A103: Ballon tampon | B103: Désactivé
B104: -
A105: Volume du ballon tampon : | B105: - | C105: litres
A106: Coût du ballon tampon : | B106: - | C106: €
A107: Ecart de température régnant dans le ballon tampon : | B107: - | C107: °C
A108: Energie stockable dans le ballon tampon : | B108: - | C108: kWhth
B109: 1592.834731
A110: Pertes : | B110: - | C110: kWhth/an
B131: 60059.6774
B132: 23600.21567
C201: % puissance | D201: Nb heures | E201: Puissance | F201: CV | G201: VAN | H201: TRS
C202: 0-39 | D202: 0 | E202: 5 | F202: 7793.1405 | G202: -152705.4016
C203: 40-49 | D203: 0 | E203: 12 | F203: 17982.15016 | G203: -141199.8648
C204: 50-59 | D204: 0 | E204: 19 | F204: 27383.54569 | G204: -125749.9934
C205: 60-69 | D205: 0 | E205: 26 | F205: 35254.55369 | G205: -113551.7058
C206: 70-79 | D206: 0 | E206: 33 | F206: 44149.10232 | G206: -95261.47187
C207: 80-89 | D207: 0 | E207: 40 | F207: 52052.34967 | G207: -79886.26015
C208: 90-99 | D208: 0 | E208: 47 | F208: 50530.88962 | G208: -97628.30624
C209: 100 | D209: 8759.75 | E209: 54 | F209: 49250.68093 | G209: -100647.4098
E210: 61 | F210: 47467.03538 | G210: -118318.6133
E211: 68 | F211: 0 | G211: -103927.0064

Sheet OptimumNL (hidden)
A1: TECHNISCHE FICHE VAN DE OPTIMALE WARMTEKRACHTINSTALLATIE
A3: Huidige ketelhuis
A5: Het te beschouwen rendement : | B5: 0.8
A7: Warmtekrachtinstallatie
A8: Kenteken: | B8: Studie
A9: Type : | B9: markt 2005
A10: Brandstof : | B10: gaz/gas
A11: Nominaal elektrisch vermogen (zonder elektrische randapparatuur) : | B11: 300 | C11: kWe
A12: Vermogen voor de elektrische randapparatuur : | B12: 6 | C12: kWe
A13: Nominaal thermisch vermogen : | B13: 425.698324 | C13: kWth
A14: Nominaal elektrisch rendement : | B14: 0.358
A15: Elektrisch rendement op half vermogen : | B15: 0.322
A16: Nominaal thermisch rendement : | B16: 0.508
A17: Gemiddeld elektrisch rendement : | B17: 0.35084
A19: Gemiddeld thermisch rendement : | B19: 0.5078203206
A21: Gemiddeld totaal rendement : | B21: =B17+B19 -> 0.8586603206
A23: Aantal draaiuren : | B23: 4114.5 | C23: uren/jaar
A24: Aantal starts : | B24: 25 | C24: starts
A26: ENERGETISCHE BALANS
A28: Elektrisch verbruik vóór de warmtekrachtinstallatie : | B28: 4956554 | C28: kWhe/jaar
A29: Brandstofverbruik vóór de warmtekrachtinstallatie : | B29: =IF(B5=0,0,B30/B5) -> 766500 | C29: kWhbr/jaar
A30: Netto thermische behoefte vóór de warmtekrachtinstallatie : | B30: =SUM(VarDeriv!$C$2:$C$35041)/4 -> 613200 | C30: kWhth/jaar | F30: Elektrisch injectie | J30: 1
A31: Verbruik van primaire energie door de warmtekrachtinstallatie : | B31: =IF(B17=0,0,B38/B17) -> 3447905.028 | C31: kWhbr/jaar | F31: Geen warmtedumpen | J31: 1
A32: Nuttige warmte geproduceerd door de warmtekrachtinstallatie : | B32: =B31*B19 -> 1750916.237 | C32: kWhth/jaar | J32: 0.7
C33: kWhé/an
A34: Brandstofbesparing voor externe boiler: | B34: =IF(B5=0,0,B32/B5) -> 2188645.296 | C34: kWhbr/jaar | F34: Brussels Gewest | J34: 0.4
A35: Nuttige warmte nog te produceren door het ketelhuis : | B35: 1771192.933 | C35: kWhth/jaar | F35: 85 | G35: €
A36: Overeenkomstig verbruik door het ketelhuis : | B36: =IF(B5=0,0,B35/B5) -> 2213991.167 | C36: kWhbr/jaar | J36: 00:00:00
C37: kWhé/an
A38: Elektrische energie geproduceerd door de warmtekrachtinstallatie : | B38: 1209663 | C38: kWhe/jaar | F38: Forfait | J38: 23:45:00
C39: kWhé/an
A40: Geef elektrische energie die op het net wordt gestoken : | B40: 141.5 | C40: kWhe/jaar
A41: Geef elektrische energie die zelf wordt verbruikt : | B41: =B38-B40 -> 1209521.5 | C41: kWhe/jaar | J41: N.A.W.
A42: Verbruik van elektrische energie na de warmtekrachtinstallatie : | B42: 3747032.5 | C42: kWhe/jaar | F42: 110 | G42: €/MWh
F43: 115.5 | G43: €/MWh | J43: Geactiveerd
A44: ECONOMISCHE BALANS | F44: 40 | G44: €/MWh | J44: 0.5
A46: Huidige situatie zonder warmtekrachtinstallatie | J46: 20
A49: Kosten | J49: 0.005
B50: 218416.191
A51: Som van elektrische kosten : | B51: 545220.94 | C51: €/jaar | F51: 32.8 | G51: €/MWh
B52: 81102.31783
A53: Som van brandstofkosten : | B53: 144381.0757 | C53: €/jaar | F53: 32.8 | G53: €/MWh
A55: Som van globale kosten : | B55: =B51+B53 -> 689602.0157 | C55: €/jaar
A57: Toekomstige situatie met de warmtekrachtinstallatie
A60: Kosten
B61: 1328170.73
A62: Kosten elektriciteit (overig) : | B62: 432782.2537 | C62: €/jaar
B63: 109012.8716
A64: Kosten brandstof : | B64: 185684.795 | C64: €/jaar
B65: 14385.32479
A66: Onderhoudskost : | B66: 17034.03 | C66: €/jaar | M66: 0 | N66: 1 | O66: 2 | P66: 3 | Q66: 4 | R66: 5 | S66: 6 | T66: 7 | U66: 8 | V66: 9 | W66: 10
A68: Som van globale energetische kosten : | B68: =IF(B64="Inconnue","Inconnue",B62+B64+B66) -> 635501.0787 | C68: €/jaar | K68: =Param!AX2 -> 0.03 | L68: gain élec | M68: =B51-B62+B73 -> 112444.3462 | N68: =$M68*(1+$K68)^N$66 -> 115817.6766 | O68: 119292.2069 | P68: 122870.9731 | Q68: 126557.1023 | R68: 130353.8154 | S68: 134264.4299 | T68: 138292.3628 | U68: 142441.1337 | V68: 146714.3677 | W68: 151115.7987
A71: Opbrengsten | K71: =0 -> 0 | L71: gain CV | M71: =B77 -> 59240.30205 | N71: =$M71*(1+$K71)^N$66 -> 59240.30205 | O71: 59240.30205 | P71: 59240.30205 | Q71: 59240.30205 | R71: 59240.30205 | S71: 59240.30205 | T71: 59240.30205 | U71: 59240.30205 | V71: 59240.30205 | W71: 59240.30205
B72: 1656.109652
A73: Verkoop van geïnjecteerde elektriciteit : | B73: 5.66 | C73: €/jaar | K73: =Param!AY2 -> 0.03 | L73: dépense comb | M73: =-(B64-B53) -> -41303.71921 | N73: =$M73*(1+$K73)^N$66 -> -42542.83079 | O73: -43819.11571 | P73: -45133.68919 | Q73: -46487.69986 | R73: -47882.33086 | S73: -49318.80078 | T73: -50798.36481 | U73: -52322.31575 | V73: -53891.98522 | W73: -55508.74478
A75: Jaarlijkse besparing zonder certificaten : | B75: =IF(B68="Inconnue","Inconnue",B55-B68+B73) -> 54106.59704 | C75: €/jaar | K75: =Param!AZ2 -> 0.02 | L75: dépense entretiens | M75: =-B66 -> -17034.03 | N75: =$M75*(1+$K75)^N$66 -> -17374.7106 | O75: -17722.20481 | P75: -18076.64891 | Q75: -18438.18189 | R75: -18806.94552 | S75: -19183.08443 | T75: -19566.74612 | U75: -19958.08105 | V75: -20357.24267 | W75: -20764.38752
A76: CO2 besparingsfactor : | B76: 0.1681471635 | K76: =Param!BA2 -> 0.05 | L76: =ROUND(L83,0) -> 12 | M76: =-B87 -> -322637.5177 | N76: =IF(N66<=$L$76,SUM(N68:N75),0) -> 115140.4373 | O76: =IF(O66<=$L$76,SUM(O68:O75),0) -> 116991.1885 | P76: 118900.9371 | Q76: 120871.5226 | R76: 122904.8411 | S76: 125002.8467 | T76: 127167.5539 | U76: 129401.0389 | V76: 131705.4418 | W76: 134082.9684
A77: Opbrengst Certificaten : | B77: 59240.30205 | C77: €/jaar | L77: =B23 -> 4114.5
B78: -1131314.341
A79: Jaarlijkse besparing met certificaten : | B79: 113346.8991 | C79: €/jaar | L79: =Param!AW2 -> 50000
A81: Economie annuelle avec C.V. sans pointe annuelle en hiver:
B82: 262338.529
A83: Totale investeringskost van de WKK-groep & eventuele warmtebuffer : | B83: 273756.64 | C83: € | L83: =L79/L77 -> 12.15214485
A84: Extra investeringskost (installatie, studie, connectie) : | B84: 0.4
A85: BRUTO investeringskost : | B85: =B83*(1+B84) -> 383259.296 | C85: €
A86: Investeringssteun : | B86: 60621.77826 | C86: €
A87: NETTO investeringskost : | B87: 322637.5177 | C87: €
B88: -8560437.084
A89: Terugverdientijd (TVT) : | B89: 2.846460912 | C89: Jaar
B90: Introuvable
A91: Netto actuele waarde (NAW) : | B91: 630038.2433 | C91: €/projectperiode
A92: Interne rentabiliteitsvoet (IRS) : | B92: =IRR(M76:W76) -> 0.3529548123 | C92: %/jaar
A93: Detail van elektrische facturatie na warmtekrachtinstallatie
B94: 26185.94426
A95: Brandstofkost : | B95: 0 | C95: €/jaar | D95: 26373.33983
A96: Elektriciteitskost : | B96: 0 | C96: €/jaar
A97: Gridconnectie : | B97: 0 | C97: €/jaar
A98: Extra belastingen : | B98: 0 | C98: €/jaar
A99: factuur elektriciteitsleverancier : | B99: 0 | C99: €/jaar
A100: factuur distributienetbeheerder : | B100: 0 | C100: €/jaar
A101: factuur transmissienetbeheerder : | B101: 0 | C101: €/jaar
B102: Désactive
A103: Warmtebuffer | B103: Geactiveerd
B104: -
A105: Buffervolume : | B105: 10650 | C105: liter
A106: Kost buffer: | B106: 11998 | C106: €
A107: Temperatuurverschil in buffer : | B107: 20 | C107: °C
A108: Energiecapaciteit in buffer : | B108: 213 | C108: kWhth
B109: 1592.834731
A110: Thermische verliezen warmtebuffer : | B110: 619.5175434 | C110: kWhth/jaar
B131: 60059.6774
B132: 23600.21567
C201: % puissance | D201: Nb heures | E201: Puissance | F201: CV | G201: VAN | H201: TRS
C202: 0-39 | D202: 0 | E202: 300 | F202: 592403.0205 | G202: 630038.2433 | H202: 2.846460912
C203: 40-49 | D203: 0 | E203: 350 | F203: 527142.059 | G203: 462009.3158 | H203: 3.682494455
C204: 50-59 | D204: 0 | E204: 400 | F204: 409905.6341 | G204: 189468.9384 | H204: 5.651533652
C205: 60-69 | D205: 0 | E205: 450 | F205: 329617.8416 | G205: -16282.41514 | H205: 8.571835136
C206: 70-79 | D206: 0 | E206: 500 | F206: 265855.0117 | G206: -193416.9765 | H206: 13.74481198
C207: 80-89 | D207: 0
C208: 90-99 | D208: 0
C209: 100 | D209: 4114.5

Sheet ResultsFR
A1: =IF(Param!AB28=1,"Puissance","Vermogen") -> Puissance | B1: =IF(Param!AB28=1,"Taux","Ratio") -> Taux | C1: =IF(Param!AB28=1,"C.V. (EUR)","GSC (EUR)") -> C.V. (EUR) | D1: =IF(Param!AB28=1,"","WKK (EUR)") ->  | E1: =IF(Param!AB28=1,"VAN (EUR)","NPV") -> VAN (EUR) | F1: =IF(Param!AB28=1,"Gain EUR/h","Winst EUR/u") -> Gain EUR/h | G1: =IF(Param!AB28=1,"TRS Années","TVT jaar") -> TRS Années | H1: =IF(Param!AB28=1,"Rotation h.","Draaiuren") -> Rotation h. | I1: =IF(Param!AB28=1,"Nb démarrage","Aantal starts") -> Nb démarrage | J1: =IF(Param!AB28=1,"Rend. Moy. Elec.","Elek. Rend.") -> Rend. Moy. Elec. | K1: =IF(Param!AB28=1,"Rend. Moy. Chal.","Therm. Rend.") -> Rend. Moy. Chal. | L1: =IF(Param!AB28=1,"Part auto-conso","Part elek. selfverbruik") -> Part auto-conso | M1: Index | N1: =IF(Param!AB28=1,"Marque","Merk") -> Marque | O1: Type | P1: =IF(Param!AB28=1,"Combustible","Brandstof") -> Combustible | Q1: =IF(Param!AB28=1,"Puissance (kW)","Vermogen (kW)") -> Puissance (kW) | R1: =IF(Param!AB28=1,"Rend. Elec.","Elek. Rend.") -> Rend. Elec. | S1: =IF(Param!AB28=1,"Rend. Elec. 1/2","Elek. Rend. 1/2") -> Rend. Elec. 1/2 | T1: =IF(Param!AB28=1,"Rend. Chal.","Therm. Rend.") -> Rend. Chal. | U1: Invest. (EUR) | V1: =IF(Param!AB28=1,"Entretien (EUR/h)","Ondehoud (EUR/u)") -> Entretien (EUR/h) | W1: =IF(Param!AB28=1,"Nombre Heures par puissance %","Aantal draaiuur (u)") -> Nombre Heures par puissance % | X1: Coherance | Y1: Injection | Z1: Type Optimization | AA1: RejetChaleur | AB1: H. Démar. | AC1: H. Arrêt | AD1: Mois | AE1: Semaine | AF1: Type Combustible | AG1: Max Puissance | AH1: =IF(Param!AB28=1,"Min Puissance","Min vermogen") -> Min Puissance | AI1: Nombre Moteurs | AJ1: Rend Elec Theor | AK1: Rend Demi Theor | AL1: Rend Chal Theor | AM1: Talon | AN1: TalonValeur | AO1: Tampon | AP1: Durée tampon | AQ1: Ecart température | AR1: Pertes | AS1: P Elec souhaitée | AT1: Energ Ballon (kWh) | AU1: Prix ballon | AV1: Volume ballon (l) | AW1: Prod chaleur totale (kWh) | AX1: CV (EUR)
A2: 5 | B2: 0.3954014669 | C2: 1298.85675 | D2: 0 | E2: -152705.4016 | F2: -2.728516182 | G2: Négatif | H2: 8759.75 | I2: 0 | J2: 0.27342 | K2: 0.637 | L2: 0 | M2: 1 | N2: Etude de | O2: marché 2005 | P2: gaz/gas | Q2: 5 | R2: 0.279 | S2: 0.251 | T2: 0.637 | U2: 21808.47 | V2: 0.22 | W2: 0 | X2: FALSE | Y2: TRUE | Z2: 3 | AA2: FALSE | AB2: 00:00:00 | AC2: 23:45:00 | AD2: TRUE | AE2: TRUE | AF2: gaz/gas | AG2: 5 | AH2: 70 | AI2: 10 | AJ2: 36 | AK2: 33 | AL2: 53 | AM2: FALSE | AN2: 0 | AO2: FALSE | AP2: 0.5 | AQ2: 20 | AR2: 0.5 | AS2: 54 | AT2: 0 | AU2: 0 | AV2: 0 | AW2: 102040.0986 | AX2: =C2 -> 1298.85675
A3: 12 | B3: 0.3801510098 | C3: 2997.025027 | D3: 0 | E3: -141199.8648 | F3: -2.152398395 | G3: Négatif | H3: 8759.75 | I3: 0 | J3: 0.2891 | K3: 0.607 | L3: 0 | M3: 2 | N3: Etude de | O3: marché 2005 | P3: gaz/gas | Q3: 12 | R3: 0.295 | S3: 0.265 | T3: 0.607 | U3: 35204.7 | V3: 0.44 | W3: 0 | AD3: TRUE | AE3: TRUE | AN3: 0 | AT3: 0 | AU3: 0 | AV3: 0 | AW3: 220705.7039 | AX3: 2997.025027
A4: 19 | B4: 0.3656216081 | C4: 4563.924281 | D4: 0 | E4: -125749.9934 | F4: -1.572263764 | G4: Négatif | H4: 8759.75 | I4: 0 | J4: 0.29694 | K4: 0.592 | L4: 0 | M4: 3 | N4: Etude de | O4: marché 2005 | P4: gaz/gas | Q4: 19 | R4: 0.303 | S4: 0.273 | T4: 0.592 | U4: 45265.44 | V4: 0.63 | W4: 0 | AD4: TRUE | AE4: TRUE | AN4: 0 | AT4: 0 | AU4: 0 | AV4: 0 | AW4: 331816.7576 | AX4: 4563.924281
A5: 26 | B5: 0.35774287 | C5: 5875.758948 | D5: 0 | E5: -113551.7058 | F5: -1.101757105 | G5: Négatif | H5: 8759.75 | I5: 0 | J5: 0.30282 | K5: 0.582 | L5: 0 | M5: 4 | N5: Etude de | O5: marché 2005 | P5: gaz/gas | Q5: 26 | R5: 0.309 | S5: 0.278 | T5: 0.582 | U5: 53737.68 | V5: 0.81 | W5: 0 | AD5: TRUE | AE5: TRUE | AT5: 0 | AU5: 0 | AV5: 0 | AW5: 420891.4949 | AX5: 5875.758948
A6: 33 | B6: 0.3499997013 | C6: 7358.183721 | D6: 0 | E6: -95261.47187 | F6: -0.522814569 | G6: Négatif | H6: 8759.75 | I6: 0 | J6: 0.30674 | K6: 0.574 | L6: 0 | M6: 5 | N6: Etude de | O6: marché 2005 | P6: gaz/gas | Q6: 33 | R6: 0.313 | S6: 0.282 | T6: 0.574 | U6: 61223.15 | V6: 0.98 | W6: 0 | AD6: TRUE | AE6: TRUE | AT6: 0 | AU6: 0 | AV6: 0 | AW6: 524545.5043 | AX6: 7358.183721
A7: 40 | B7: 0.3462812157 | C7: 8675.391611 | D7: 0 | E7: -79886.26015 | F7: -0.02397018404 | G7: Négatif | H7: 8759.75 | I7: 0 | J7: 0.3098623982 | K7: 0.5687976018 | L7: 0 | M7: 6 | N7: Etude de | O7: marché 2005 | P7: gaz/gas | Q7: 40 | R7: 0.317 | S7: 0.285 | T7: 0.568 | U7: 68016.66 | V7: 1.14 | W7: 0 | AD7: TRUE | AE7: TRUE | AT7: 0 | AU7: 0 | AV7: 0 | AW7: 613179.7021 | AX7: 8675.391611
A8: 47 | B8: 0.3416066896 | C8: 8421.814937 | D8: 0 | E8: -97628.30624 | F8: -0.259875894 | G8: Négatif | H8: 8759.75 | I8: 0 | J8: 0.3059235792 | K8: 0.5706694709 | L8: 0 | M8: 7 | N8: Etude de | O8: marché 2005 | P8: gaz/gas | Q8: 47 | R8: 0.32 | S8: 0.288 | T8: 0.563 | U8: 74289.26 | V8: 1.29 | W8: 0 | AD8: TRUE | AE8: TRUE | AT8: 0 | AU8: 0 | AV8: 0 | AW8: 613189.9677 | AX8: 8421.814937
A9: 54 | B9: 0.3388624378 | C9: 8208.446821 | D9: 0 | E9: -100647.4098 | F9: -0.2101786527 | G9: Négatif | H9: 8759.75 | I9: 0 | J9: 0.3020628975 | K9: 0.5734701816 | L9: 0 | M9: 8 | N9: Etude de | O9: marché 2005 | P9: gaz/gas | Q9: 54 | R9: 0.323 | S9: 0.291 | T9: 0.559 | U9: 78987.78 | V9: 1.16 | W9: 8759.75 | AD9: TRUE | AT9: 0 | AU9: 0 | AV9: 0 | AW9: 613189.9001 | AX9: 8208.446821
A10: 61 | B10: 0.3338396971 | C10: 7911.172563 | D10: 0 | E10: -118318.6133 | F10: -0.4258796242 | G10: Négatif | H10: 8759.75 | I10: 0 | J10: 0.2970455548 | K10: 0.5764544452 | L10: 0 | M10: 9 | N10: Etude de | O10: marché 2005 | P10: gaz/gas | Q10: 61 | R10: 0.325 | S10: 0.293 | T10: 0.555 | U10: 86009.49 | V10: 1.27 | AD10: TRUE | AT10: 0 | AU10: 0 | AV10: 0 | AW10: 613173.7458 | AX10: 7911.172563
A11: 68 | B11: 0 | C11: 0 | D11: 0 | E11: -103927.0064 | F11: 0 | G11: Négatif | H11: 0 | I11: 0 | J11: 1 | K11: 1 | L11: 0 | M11: 10 | N11: Etude de | O11: marché 2005 | P11: gaz/gas | Q11: 68 | R11: 0.327 | S11: 0.295 | T11: 0.552 | U11: 92791.97 | V11: 1.37 | AD11: TRUE | AT11: 0 | AU11: 0 | AV11: 0 | AW11: 0 | AX11: 0
AD12: TRUE | AT12: 0 | AU12: 0 | AV12: 0 | AX12: 0
AD13: TRUE | AT13: 0 | AU13: 0 | AV13: 0 | AX13: 0
AT14: 0 | AU14: 0 | AV14: 0 | AX14: 0
AT15: 0 | AU15: 0 | AV15: 0 | AX15: 0
AT16: 0 | AU16: 0 | AV16: 0 | AX16: 0
AT17: 0 | AU17: 0 | AV17: 0 | AX17: 0
AT18: 0 | AU18: 0 | AV18: 0 | AX18: 0
AT19: 0 | AU19: 0 | AV19: 0 | AX19: 0
AT20: 0 | AU20: 0 | AV20: 0 | AX20: 0
AT21: 0 | AU21: 0 | AV21: 0 | AX21: 0
AT22: 0 | AU22: 0 | AV22: 0 | AX22: 0
AT23: 0 | AU23: 0 | AV23: 0 | AX23: 0
AT24: 0 | AU24: 0 | AV24: 0 | AX24: 0
AT25: 0 | AU25: 0 | AV25: 0 | AX25: 0
AT26: 0 | AU26: 0 | AV26: 0 | AX26: 0
AT27: 0 | AU27: 0 | AV27: 0 | AX27: 0
AT28: 0 | AU28: 0 | AV28: 0 | AX28: 0
AT29: 0 | AU29: 0 | AV29: 0 | AX29: 0
AT30: 0 | AU30: 0 | AV30: 0 | AX30: 0
AT31: 0 | AU31: 0 | AV31: 0 | AX31: 0
AT32: 0 | AU32: 0 | AV32: 0 | AX32: 0
AT33: 0 | AU33: 0 | AV33: 0 | AX33: 0
AT34: 0 | AU34: 0 | AV34: 0 | AX34: 0
AT35: 0 | AU35: 0 | AV35: 0 | AX35: 0
AT36: 0 | AU36: 0 | AV36: 0 | AX36: 0
AT37: 0 | AU37: 0 | AV37: 0 | AX37: 0
AT38: 0 | AU38: 0 | AV38: 0 | AX38: 0
AT39: 0 | AU39: 0 | AV39: 0 | AX39: 0
AT40: 0 | AU40: 0 | AV40: 0 | AX40: 0
AT41: 0 | AU41: 0 | AV41: 0 | AX41: 0
AT42: 0 | AU42: 0 | AV42: 0 | AX42: 0
AT43: 0 | AU43: 0 | AV43: 0 | AX43: 0
AT44: 0 | AU44: 0 | AV44: 0 | AX44: 0
AT45: 0 | AU45: 0 | AV45: 0 | AX45: 0
AT46: 0 | AU46: 0 | AV46: 0 | AX46: 0
AT47: 0 | AU47: 0 | AV47: 0 | AX47: 0
AT48: 0 | AU48: 0 | AV48: 0 | AX48: 0
AT49: 0 | AU49: 0 | AV49: 0 | AX49: 0
AT50: 0 | AU50: 0 | AV50: 0 | AX50: 0
AT51: 0 | AU51: 0 | AV51: 0 | AX51: 0
AT52: 0 | AU52: 0 | AV52: 0 | AX52: 0
AT53: 0 | AU53: 0 | AV53: 0 | AX53: 0
AT54: 0 | AU54: 0 | AV54: 0 | AX54: 0
AT55: 0 | AU55: 0 | AV55: 0 | AX55: 0
AT56: 0 | AU56: 0 | AV56: 0 | AX56: 0
AT57: 0 | AU57: 0 | AV57: 0 | AX57: 0
AT58: 0 | AU58: 0 | AV58: 0 | AX58: 0
AT59: 0 | AU59: 0 | AV59: 0 | AX59: 0
AT60: 0 | AU60: 0 | AV60: 0 | AX60: 0
AT61: 0 | AU61: 0 | AV61: 0 | AX61: 0
AT62: 0 | AU62: 0 | AV62: 0 | AX62: 0
AT63: 0 | AU63: 0 | AV63: 0 | AX63: 0
AT64: 0 | AU64: 0 | AV64: 0 | AX64: 0
AT65: 0 | AU65: 0 | AV65: 0 | AX65: 0
AT66: 0 | AU66: 0 | AV66: 0 | AX66: =C66 -> 0
AT67: 0 | AU67: 0 | AV67: 0 | AX67: 0
AT68: 0 | AU68: 0 | AV68: 0 | AX68: 0
AT69: 0 | AU69: 0 | AV69: 0 | AX69: 0
AT70: 0 | AU70: 0 | AV70: 0 | AX70: 0
AT71: 0 | AU71: 0 | AV71: 0 | AX71: 0
AT72: 0 | AU72: 0 | AV72: 0 | AX72: 0
AT73: 0 | AU73: 0 | AV73: 0 | AX73: 0
AT74: 0 | AU74: 0 | AV74: 0 | AX74: 0
AT75: 0 | AU75: 0 | AV75: 0 | AX75: 0
AT76: 0 | AU76: 0 | AV76: 0 | AX76: 0
AT77: 0 | AU77: 0 | AV77: 0 | AX77: 0
AT78: 0 | AU78: 0 | AV78: 0 | AX78: 0
AT79: 0 | AU79: 0 | AV79: 0 | AX79: 0
AT80: 0 | AU80: 0 | AV80: 0 | AX80: 0
AT81: 0 | AU81: 0 | AV81: 0 | AX81: 0
AT82: 0 | AU82: 0 | AV82: 0 | AX82: 0
AT83: 0 | AU83: 0 | AV83: 0 | AX83: 0
AT84: 0 | AU84: 0 | AV84: 0 | AX84: 0
AT85: 0 | AU85: 0 | AV85: 0 | AX85: 0
AT86: 0 | AU86: 0 | AV86: 0 | AX86: 0
AT87: 0 | AU87: 0 | AV87: 0 | AX87: 0
AT88: 0 | AU88: 0 | AV88: 0 | AX88: 0
AT89: 0 | AU89: 0 | AV89: 0 | AX89: 0
AT90: 0 | AU90: 0 | AV90: 0 | AX90: 0
AX91: 0
AX92: 0
AX93: 0
AX94: 0
AX95: 0
AX96: 0
AX97: 0
AX98: 0
AX99: 0
AX100: 0
AX101: 0
AX102: 0
AX103: 0
AX104: 0
AX105: 0
AX106: 0
AX107: 0
AX108: 0
AX109: 0
AX110: 0
AX111: 0
AX112: 0
AX113: 0
AX114: 0
AX115: 0
AX116: 0
AX117: 0
AX118: 0
AX119: 0
AX120: 0
AX121: 0
AX122: 0
AX123: 0
AX124: 0
AX125: 0
AX126: 0
AX127: 0
AX128: 0
AX129: 0
AX130: =C130 -> 0
AX131: 0
AX132: 0
AX133: 0
AX134: 0
AX135: 0
AX136: 0
AX137: 0
AX138: 0
AX139: 0
AX140: 0
AX141: 0
AX142: 0
AX143: 0
AX144: 0
AX145: 0
AX146: 0
AX147: 0
AX148: 0
AX149: 0
AX150: 0
AX151: 0
AX152: 0
AX153: 0
AX154: 0
AX155: 0
AX156: 0
AX157: 0
AX158: 0
AX159: 0
AX160: 0
AX161: 0
AX162: 0
AX163: 0
AX164: 0
AX165: 0
AX166: 0
AX167: 0
AX168: 0
AX169: 0
AX170: 0
AX171: 0
AX172: 0
AX173: 0
AX174: 0
AX175: 0
AX176: 0
AX177: 0
AX178: 0
AX179: 0
AX180: 0
AX181: 0
AX182: 0
AX183: 0
AX184: 0
AX185: 0
AX186: 0
AX187: 0
AX188: 0
AX189: 0
AX190: 0
AX191: 0
AX192: 0
AX193: 0
AX194: =C194 -> 0
AX195: 0
AX196: 0
AX197: 0
AX198: 0
AX199: 0
AX200: 0
... 53 more rows

Sheet ResultsNL (hidden)
A1: =IF(Param!AB28=1,"Puissance","Vermogen") -> Puissance | B1: =IF(Param!AB28=1,"Taux","Ratio") -> Taux | C1: =IF(Param!AB28=1,"C.V. (EUR)","GSC (EUR)") -> C.V. (EUR) | D1: =IF(Param!AB28=1,"","WKK (EUR)") ->  | E1: =IF(Param!AB28=1,"VAN (EUR)","NPV") -> VAN (EUR) | F1: =IF(Param!AB28=1,"Gain EUR/h","Winst EUR/u") -> Gain EUR/h | G1: =IF(Param!AB28=1,"TRS Années","TVT jaar") -> TRS Années | H1: =IF(Param!AB28=1,"Rotation h.","Draaiuren") -> Rotation h. | I1: =IF(Param!AB28=1,"Nb démarrage","Aantal starts") -> Nb démarrage | J1: =IF(Param!AB28=1,"Rend. Moy. Elec.","Elek. Rend.") -> Rend. Moy. Elec. | K1: =IF(Param!AB28=1,"Rend. Moy. Chal.","Therm. Rend.") -> Rend. Moy. Chal. | L1: =IF(Param!AB28=1,"Part auto-conso","Part elek. selfverbruik") -> Part auto-conso | M1: Index | N1: =IF(Param!AB28=1,"Marque","Merk") -> Marque | O1: Type | P1: =IF(Param!AB28=1,"Combustible","Brandstof") -> Combustible | Q1: =IF(Param!AB28=1,"Puissance (kW)","Vermogen (kW)") -> Puissance (kW) | R1: =IF(Param!AB28=1,"Rend. Elec.","Elek. Rend.") -> Rend. Elec. | S1: =IF(Param!AB28=1,"Rend. Elec. 1/2","Elek. Rend. 1/2") -> Rend. Elec. 1/2 | T1: =IF(Param!AB28=1,"Rend. Chal.","Therm. Rend.") -> Rend. Chal. | U1: Invest. (EUR) | V1: =IF(Param!AB28=1,"Entretien (EUR/h)","Ondehoud (EUR/u)") -> Entretien (EUR/h) | W1: =IF(Param!AB28=1,"Nombre Heures par puissance %","Aantal draaiuur (u)") -> Nombre Heures par puissance % | X1: Coherance | Y1: Injection | Z1: Type Optimization | AA1: RejetChaleur | AB1: H. Démar. | AC1: H. Arrêt | AD1: Mois | AE1: Semaine | AF1: Type Combustible | AG1: Max Puissance | AH1: =IF(Param!AB28=1,"Min Puissance","Min vermogen") -> Min Puissance | AI1: Nombre Moteurs | AJ1: Rend Elec Theor | AK1: Rend Demi Theor | AL1: Rend Chal Theor | AM1: Talon | AN1: TalonValeur | AO1: Tampon | AP1: Volume tampon | AQ1: Ecart température | AR1: Pertes | AS1: P Elec souhaitée | AT1: Energ Buffer (kWh) | AU1: Prijs Buffer | AV1: Liter | AW1: Tot. Therm. Productie (kWh)
A2: 300 | B2: 0.1681471635 | C2: 59240.30205 | D2: 0 | E2: 630038.2433 | F2: 27.54815873 | G2: 2.846460912 | H2: 4114.5 | I2: 25 | J2: 0.35084 | K2: 0.5078203206 | L2: 0 | M2: 1 | N2: Studie | O2: markt 2005 | P2: gaz/gas | Q2: 300 | R2: 0.358 | S2: 0.322 | T2: 0.508 | U2: 261758.64 | V2: 4.14 | W2: 0 | X2: TRUE | Y2: TRUE | Z2: 2 | AA2: FALSE | AB2: 00:00:00 | AC2: 23:45:00 | AD2: TRUE | AE2: TRUE | AF2: gaz/gas | AG2: 300 | AH2: 500 | AI2: 5 | AJ2: 36 | AK2: 33 | AL2: 53 | AM2: FALSE | AN2: 0 | AO2: TRUE | AP2: 0.5 | AQ2: 20 | AR2: 0.5 | AS2: 30 | AT2: 213 | AU2: 11998 | AV2: 10650 | AW2: 1751535.754
A3: 350 | B3: 0.1699296367 | C3: 52714.2059 | D3: 0 | E3: 462009.3158 | F3: 31.35050857 | G3: 3.682494455 | H3: 3133.25 | I3: 24 | J3: 0.35476 | K3: 0.5037290688 | L3: 0 | M3: 2 | N3: Studie | O3: markt 2005 | P3: gaz/gas | Q3: 350 | R3: 0.362 | S3: 0.325 | T3: 0.504 | U3: 291525.63 | V3: 4.64 | W3: 0 | AD3: TRUE | AE3: TRUE | AN3: 0 | AT3: 244 | AU3: 13622 | AV3: 12200 | AW3: 1526810.221
A4: 400 | B4: 0.1705077798 | C4: 40990.56341 | D4: 0 | E4: 189468.9384 | F4: 33.00408298 | G4: 5.651533652 | H4: 2140.75 | I4: 21 | J4: 0.3577 | K4: 0.4996738619 | L4: 0 | M4: 3 | N4: Studie | O4: markt 2005 | P4: gaz/gas | Q4: 400 | R4: 0.365 | S4: 0.328 | T4: 0.5 | U4: 320033.7 | V4: 5.13 | W4: 0 | AD4: TRUE | AE4: TRUE | AN4: 0 | AT4: 274 | AU4: 15181 | AV4: 13700 | AW4: 1173013.699
A5: 450 | B5: 0.1706970389 | C5: 32961.78416 | D5: 0 | E5: -16282.41514 | F5: 33.08317672 | G5: 8.571835136 | H5: 1536.5 | I5: 13 | J5: 0.35966 | K5: 0.4967142023 | L5: 0 | M5: 4 | N5: Studie | O5: markt 2005 | P5: gaz/gas | Q5: 450 | R5: 0.367 | S5: 0.33 | T5: 0.497 | U5: 347484.94 | V5: 5.6 | W5: 0 | AD5: TRUE | AE5: TRUE | AT5: 305 | AU5: 16781 | AV5: 15250 | AW5: 936343.9373
A6: 500 | B6: 0.1719924227 | C6: 26585.50117 | D6: 0 | E6: -193416.9765 | F6: 30.75092162 | G6: 13.74481198 | H6: 1114.25 | I6: 13 | J6: 0.3626 | K6: 0.4936011202 | L6: 0 | M6: 5 | N6: Studie | O6: markt 2005 | P6: gaz/gas | Q6: 500 | R6: 0.37 | S6: 0.333 | T6: 0.494 | U6: 374030.26 | V6: 6.06 | W6: 0 | AD6: TRUE | AE6: TRUE | AT6: 334 | AU6: 18268 | AV6: 16700 | AW6: 743837.1622
W7: 0 | AD7: TRUE | AE7: TRUE
W8: 0 | AD8: TRUE | AE8: TRUE
W9: 4114.5 | AD9: TRUE
AD10: TRUE
AD11: TRUE
AD12: TRUE
AD13: TRUE
F25729: d

Sheet Graph
AA2: 1900-01-04

Sheet VarDeriv
A1: Dates/Datum | B1: =IF(Param!AB28=1,"Conso. Élec. (kW)","Elek. Verbruik (kW)") -> Conso. Élec. (kW) | C1: =IF(Param!AB28=1,"Conso. Therm. (kW)","Therm. Verbruik (kW)") -> Conso. Therm. (kW) | D1: =IF(Param!AB28=1,"Prod. Élec. (kW)","Elek. prod. (kW)") -> Prod. Élec. (kW) | E1: =IF(Param!AB28=1,"Conso. Élec. Résiduelle (kW)","Elek. Verbruik na WKK (kW)") -> Conso. Élec. Résiduelle (kW) | F1: =IF(Param!AB28=1,"Vente élec (kW)","Elek. Verkoop (kW)") -> Vente élec (kW) | G1: =IF(Param!AB28=1,"Prod therm. (kW)","Therm. Prod. (kW)") -> Prod therm. (kW) | H1: =IF(Param!AB28=1,"Conso. Therm. Résiduelle (kW)","Therm verbruik na WKK (kW)") -> Conso. Therm. Résiduelle (kW) | I1: =IF(Param!AB28=1,"Chaleur perdue (kW)","Therm. Verlies (kW)") -> Chaleur perdue (kW) | J1: =IF(Param!AB28=1,"Conso. Combustible (kW)","Brandstof verbruik (kW)") -> Conso. Combustible (kW) | K1: =IF(Param!AB28=1,"Remplissage ballon (%)","Warmtebuffer (%)") -> Remplissage ballon (%)
A2: 2009-01-01 | B2: 364 | C2: 70 | D2: 5 | E2: 359 | F2: 0 | G2: 11.64874552 | H2: 58.35125448 | I2: 0 | J2: 18.28688465 | K2: 0
A3: 2009-01-01T00:15:00 | B3: 360 | C3: 70 | D3: 5 | E3: 355 | F3: 0 | G3: 11.64874552 | H3: 58.35125448 | I3: 0 | J3: 18.28688465 | K3: 0 | L3: =SUM(H2:H35041)/4+SUM(I2:I35041)/4 -> 511159.9014
A4: 2009-01-01T00:30:00 | B4: 356 | C4: 70 | D4: 5 | E4: 351 | F4: 0 | G4: 11.64874552 | H4: 58.35125448 | I4: 0 | J4: 18.28688465 | K4: 0 | L4: =OptimumFR!B35 -> 511159.9014
A5: 2009-01-01T00:45:00 | B5: 360 | C5: 70 | D5: 5 | E5: 355 | F5: 0 | G5: 11.64874552 | H5: 58.35125448 | I5: 0 | J5: 18.28688465 | K5: 0 | L5: =L3-L4 -> 0
A6: 2009-01-01T01:00:00 | B6: 356 | C6: 70 | D6: 5 | E6: 351 | F6: 0 | G6: 11.64874552 | H6: 58.35125448 | I6: 0 | J6: 18.28688465 | K6: 0
A7: 2009-01-01T01:15:00 | B7: 352 | C7: 70 | D7: 5 | E7: 347 | F7: 0 | G7: 11.64874552 | H7: 58.35125448 | I7: 0 | J7: 18.28688465 | K7: 0
A8: 2009-01-01T01:30:00 | B8: 352 | C8: 70 | D8: 5 | E8: 347 | F8: 0 | G8: 11.64874552 | H8: 58.35125448 | I8: 0 | J8: 18.28688465 | K8: 0
A9: 2009-01-01T01:45:00 | B9: 352 | C9: 70 | D9: 5 | E9: 347 | F9: 0 | G9: 11.64874552 | H9: 58.35125448 | I9: 0 | J9: 18.28688465 | K9: 0
A10: 2009-01-01T02:00:00 | B10: 344 | C10: 70 | D10: 5 | E10: 339 | F10: 0 | G10: 11.64874552 | H10: 58.35125448 | I10: 0 | J10: 18.28688465 | K10: 0
A11: 2009-01-01T02:15:00 | B11: 348 | C11: 70 | D11: 5 | E11: 343 | F11: 0 | G11: 11.64874552 | H11: 58.35125448 | I11: 0 | J11: 18.28688465 | K11: 0
A12: 2009-01-01T02:30:00 | B12: 348 | C12: 70 | D12: 5 | E12: 343 | F12: 0 | G12: 11.64874552 | H12: 58.35125448 | I12: 0 | J12: 18.28688465 | K12: 0
A13: 2009-01-01T02:45:00 | B13: 352 | C13: 70 | D13: 5 | E13: 347 | F13: 0 | G13: 11.64874552 | H13: 58.35125448 | I13: 0 | J13: 18.28688465 | K13: 0
A14: 2009-01-01T03:00:00 | B14: 340 | C14: 70 | D14: 5 | E14: 335 | F14: 0 | G14: 11.64874552 | H14: 58.35125448 | I14: 0 | J14: 18.28688465 | K14: 0
A15: 2009-01-01T03:15:00 | B15: 348 | C15: 70 | D15: 5 | E15: 343 | F15: 0 | G15: 11.64874552 | H15: 58.35125448 | I15: 0 | J15: 18.28688465 | K15: 0
A16: 2009-01-01T03:30:00 | B16: 340 | C16: 70 | D16: 5 | E16: 335 | F16: 0 | G16: 11.64874552 | H16: 58.35125448 | I16: 0 | J16: 18.28688465 | K16: 0
A17: 2009-01-01T03:45:00 | B17: 348 | C17: 70 | D17: 5 | E17: 343 | F17: 0 | G17: 11.64874552 | H17: 58.35125448 | I17: 0 | J17: 18.28688465 | K17: 0
A18: 2009-01-01T04:00:00 | B18: 344 | C18: 70 | D18: 5 | E18: 339 | F18: 0 | G18: 11.64874552 | H18: 58.35125448 | I18: 0 | J18: 18.28688465 | K18: 0
A19: 2009-01-01T04:15:00 | B19: 352 | C19: 70 | D19: 5 | E19: 347 | F19: 0 | G19: 11.64874552 | H19: 58.35125448 | I19: 0 | J19: 18.28688465 | K19: 0
A20: 2009-01-01T04:30:00 | B20: 352 | C20: 70 | D20: 5 | E20: 347 | F20: 0 | G20: 11.64874552 | H20: 58.35125448 | I20: 0 | J20: 18.28688465 | K20: 0
A21: 2009-01-01T04:45:00 | B21: 356 | C21: 70 | D21: 5 | E21: 351 | F21: 0 | G21: 11.64874552 | H21: 58.35125448 | I21: 0 | J21: 18.28688465 | K21: 0
A22: 2009-01-01T05:00:00 | B22: 356 | C22: 70 | D22: 5 | E22: 351 | F22: 0 | G22: 11.64874552 | H22: 58.35125448 | I22: 0 | J22: 18.28688465 | K22: 0
A23: 2009-01-01T05:15:00 | B23: 360 | C23: 70 | D23: 5 | E23: 355 | F23: 0 | G23: 11.64874552 | H23: 58.35125448 | I23: 0 | J23: 18.28688465 | K23: 0
A24: 2009-01-01T05:30:00 | B24: 360 | C24: 70 | D24: 5 | E24: 355 | F24: 0 | G24: 11.64874552 | H24: 58.35125448 | I24: 0 | J24: 18.28688465 | K24: 0
A25: 2009-01-01T05:45:00 | B25: 456 | C25: 70 | D25: 5 | E25: 451 | F25: 0 | G25: 11.64874552 | H25: 58.35125448 | I25: 0 | J25: 18.28688465 | K25: 0
A26: 2009-01-01T06:00:00 | B26: 488 | C26: 70 | D26: 5 | E26: 483 | F26: 0 | G26: 11.64874552 | H26: 58.35125448 | I26: 0 | J26: 18.28688465 | K26: 0
A27: 2009-01-01T06:15:00 | B27: 488 | C27: 70 | D27: 5 | E27: 483 | F27: 0 | G27: 11.64874552 | H27: 58.35125448 | I27: 0 | J27: 18.28688465 | K27: 0
A28: 2009-01-01T06:30:00 | B28: 484 | C28: 70 | D28: 5 | E28: 479 | F28: 0 | G28: 11.64874552 | H28: 58.35125448 | I28: 0 | J28: 18.28688465 | K28: 0
A29: 2009-01-01T06:45:00 | B29: 472 | C29: 70 | D29: 5 | E29: 467 | F29: 0 | G29: 11.64874552 | H29: 58.35125448 | I29: 0 | J29: 18.28688465 | K29: 0
A30: 2009-01-01T07:00:00 | B30: 476 | C30: 70 | D30: 5 | E30: 471 | F30: 0 | G30: 11.64874552 | H30: 58.35125448 | I30: 0 | J30: 18.28688465 | K30: 0
A31: 2009-01-01T07:15:00 | B31: 488 | C31: 70 | D31: 5 | E31: 483 | F31: 0 | G31: 11.64874552 | H31: 58.35125448 | I31: 0 | J31: 18.28688465 | K31: 0
A32: 2009-01-01T07:30:00 | B32: 528 | C32: 70 | D32: 5 | E32: 523 | F32: 0 | G32: 11.64874552 | H32: 58.35125448 | I32: 0 | J32: 18.28688465 | K32: 0
A33: 2009-01-01T07:45:00 | B33: 552 | C33: 70 | D33: 5 | E33: 547 | F33: 0 | G33: 11.64874552 | H33: 58.35125448 | I33: 0 | J33: 18.28688465 | K33: 0
A34: 2009-01-01T08:00:00 | B34: 536 | C34: 70 | D34: 5 | E34: 531 | F34: 0 | G34: 11.64874552 | H34: 58.35125448 | I34: 0 | J34: 18.28688465 | K34: 0
A35: 2009-01-01T08:15:00 | B35: 536 | C35: 70 | D35: 5 | E35: 531 | F35: 0 | G35: 11.64874552 | H35: 58.35125448 | I35: 0 | J35: 18.28688465 | K35: 0
A36: 2009-01-01T08:30:00 | B36: 540 | C36: 70 | D36: 5 | E36: 535 | F36: 0 | G36: 11.64874552 | H36: 58.35125448 | I36: 0 | J36: 18.28688465 | K36: 0
A37: 2009-01-01T08:45:00 | B37: 524 | C37: 70 | D37: 5 | E37: 519 | F37: 0 | G37: 11.64874552 | H37: 58.35125448 | I37: 0 | J37: 18.28688465 | K37: 0
A38: 2009-01-01T09:00:00 | B38: 492 | C38: 70 | D38: 5 | E38: 487 | F38: 0 | G38: 11.64874552 | H38: 58.35125448 | I38: 0 | J38: 18.28688465 | K38: 0
A39: 2009-01-01T09:15:00 | B39: 476 | C39: 70 | D39: 5 | E39: 471 | F39: 0 | G39: 11.64874552 | H39: 58.35125448 | I39: 0 | J39: 18.28688465 | K39: 0
A40: 2009-01-01T09:30:00 | B40: 512 | C40: 70 | D40: 5 | E40: 507 | F40: 0 | G40: 11.64874552 | H40: 58.35125448 | I40: 0 | J40: 18.28688465 | K40: 0
A41: 2009-01-01T09:45:00 | B41: 548 | C41: 70 | D41: 5 | E41: 543 | F41: 0 | G41: 11.64874552 | H41: 58.35125448 | I41: 0 | J41: 18.28688465 | K41: 0
A42: 2009-01-01T10:00:00 | B42: 556 | C42: 70 | D42: 5 | E42: 551 | F42: 0 | G42: 11.64874552 | H42: 58.35125448 | I42: 0 | J42: 18.28688465 | K42: 0
A43: 2009-01-01T10:15:00 | B43: 528 | C43: 70 | D43: 5 | E43: 523 | F43: 0 | G43: 11.64874552 | H43: 58.35125448 | I43: 0 | J43: 18.28688465 | K43: 0
A44: 2009-01-01T10:30:00 | B44: 516 | C44: 70 | D44: 5 | E44: 511 | F44: 0 | G44: 11.64874552 | H44: 58.35125448 | I44: 0 | J44: 18.28688465 | K44: 0
A45: 2009-01-01T10:45:00 | B45: 504 | C45: 70 | D45: 5 | E45: 499 | F45: 0 | G45: 11.64874552 | H45: 58.35125448 | I45: 0 | J45: 18.28688465 | K45: 0
A46: 2009-01-01T11:00:00 | B46: 500 | C46: 70 | D46: 5 | E46: 495 | F46: 0 | G46: 11.64874552 | H46: 58.35125448 | I46: 0 | J46: 18.28688465 | K46: 0
A47: 2009-01-01T11:15:00 | B47: 504 | C47: 70 | D47: 5 | E47: 499 | F47: 0 | G47: 11.64874552 | H47: 58.35125448 | I47: 0 | J47: 18.28688465 | K47: 0
A48: 2009-01-01T11:30:00 | B48: 532 | C48: 70 | D48: 5 | E48: 527 | F48: 0 | G48: 11.64874552 | H48: 58.35125448 | I48: 0 | J48: 18.28688465 | K48: 0
A49: 2009-01-01T11:45:00 | B49: 520 | C49: 70 | D49: 5 | E49: 515 | F49: 0 | G49: 11.64874552 | H49: 58.35125448 | I49: 0 | J49: 18.28688465 | K49: 0
A50: 2009-01-01T12:00:00 | B50: 540 | C50: 70 | D50: 5 | E50: 535 | F50: 0 | G50: 11.64874552 | H50: 58.35125448 | I50: 0 | J50: 18.28688465 | K50: 0
A51: 2009-01-01T12:15:00 | B51: 544 | C51: 70 | D51: 5 | E51: 539 | F51: 0 | G51: 11.64874552 | H51: 58.35125448 | I51: 0 | J51: 18.28688465 | K51: 0
A52: 2009-01-01T12:30:00 | B52: 524 | C52: 70 | D52: 5 | E52: 519 | F52: 0 | G52: 11.64874552 | H52: 58.35125448 | I52: 0 | J52: 18.28688465 | K52: 0
A53: 2009-01-01T12:45:00 | B53: 516 | C53: 70 | D53: 5 | E53: 511 | F53: 0 | G53: 11.64874552 | H53: 58.35125448 | I53: 0 | J53: 18.28688465 | K53: 0
A54: 2009-01-01T13:00:00 | B54: 460 | C54: 70 | D54: 5 | E54: 455 | F54: 0 | G54: 11.64874552 | H54: 58.35125448 | I54: 0 | J54: 18.28688465 | K54: 0
A55: 2009-01-01T13:15:00 | B55: 424 | C55: 70 | D55: 5 | E55: 419 | F55: 0 | G55: 11.64874552 | H55: 58.35125448 | I55: 0 | J55: 18.28688465 | K55: 0
A56: 2009-01-01T13:30:00 | B56: 420 | C56: 70 | D56: 5 | E56: 415 | F56: 0 | G56: 11.64874552 | H56: 58.35125448 | I56: 0 | J56: 18.28688465 | K56: 0
A57: 2009-01-01T13:45:00 | B57: 456 | C57: 70 | D57: 5 | E57: 451 | F57: 0 | G57: 11.64874552 | H57: 58.35125448 | I57: 0 | J57: 18.28688465 | K57: 0
A58: 2009-01-01T14:00:00 | B58: 472 | C58: 70 | D58: 5 | E58: 467 | F58: 0 | G58: 11.64874552 | H58: 58.35125448 | I58: 0 | J58: 18.28688465 | K58: 0
A59: 2009-01-01T14:15:00 | B59: 456 | C59: 70 | D59: 5 | E59: 451 | F59: 0 | G59: 11.64874552 | H59: 58.35125448 | I59: 0 | J59: 18.28688465 | K59: 0
A60: 2009-01-01T14:30:00 | B60: 472 | C60: 70 | D60: 5 | E60: 467 | F60: 0 | G60: 11.64874552 | H60: 58.35125448 | I60: 0 | J60: 18.28688465 | K60: 0
A61: 2009-01-01T14:45:00 | B61: 444 | C61: 70 | D61: 5 | E61: 439 | F61: 0 | G61: 11.64874552 | H61: 58.35125448 | I61: 0 | J61: 18.28688465 | K61: 0
A62: 2009-01-01T15:00:00 | B62: 428 | C62: 70 | D62: 5 | E62: 423 | F62: 0 | G62: 11.64874552 | H62: 58.35125448 | I62: 0 | J62: 18.28688465 | K62: 0
A63: 2009-01-01T15:15:00 | B63: 428 | C63: 70 | D63: 5 | E63: 423 | F63: 0 | G63: 11.64874552 | H63: 58.35125448 | I63: 0 | J63: 18.28688465 | K63: 0
A64: 2009-01-01T15:30:00 | B64: 436 | C64: 70 | D64: 5 | E64: 431 | F64: 0 | G64: 11.64874552 | H64: 58.35125448 | I64: 0 | J64: 18.28688465 | K64: 0
A65: 2009-01-01T15:45:00 | B65: 472 | C65: 70 | D65: 5 | E65: 467 | F65: 0 | G65: 11.64874552 | H65: 58.35125448 | I65: 0 | J65: 18.28688465 | K65: 0
A66: 2009-01-01T16:00:00 | B66: 448 | C66: 70 | D66: 5 | E66: 443 | F66: 0 | G66: 11.64874552 | H66: 58.35125448 | I66: 0 | J66: 18.28688465 | K66: 0
A67: 2009-01-01T16:15:00 | B67: 424 | C67: 70 | D67: 5 | E67: 419 | F67: 0 | G67: 11.64874552 | H67: 58.35125448 | I67: 0 | J67: 18.28688465 | K67: 0
A68: 2009-01-01T16:30:00 | B68: 432 | C68: 70 | D68: 5 | E68: 427 | F68: 0 | G68: 11.64874552 | H68: 58.35125448 | I68: 0 | J68: 18.28688465 | K68: 0
A69: 2009-01-01T16:45:00 | B69: 436 | C69: 70 | D69: 5 | E69: 431 | F69: 0 | G69: 11.64874552 | H69: 58.35125448 | I69: 0 | J69: 18.28688465 | K69: 0
A70: 2009-01-01T17:00:00 | B70: 436 | C70: 70 | D70: 5 | E70: 431 | F70: 0 | G70: 11.64874552 | H70: 58.35125448 | I70: 0 | J70: 18.28688465 | K70: 0
A71: 2009-01-01T17:15:00 | B71: 432 | C71: 70 | D71: 5 | E71: 427 | F71: 0 | G71: 11.64874552 | H71: 58.35125448 | I71: 0 | J71: 18.28688465 | K71: 0
A72: 2009-01-01T17:30:00 | B72: 424 | C72: 70 | D72: 5 | E72: 419 | F72: 0 | G72: 11.64874552 | H72: 58.35125448 | I72: 0 | J72: 18.28688465 | K72: 0
A73: 2009-01-01T17:45:00 | B73: 432 | C73: 70 | D73: 5 | E73: 427 | F73: 0 | G73: 11.64874552 | H73: 58.35125448 | I73: 0 | J73: 18.28688465 | K73: 0
A74: 2009-01-01T18:00:00 | B74: 420 | C74: 70 | D74: 5 | E74: 415 | F74: 0 | G74: 11.64874552 | H74: 58.35125448 | I74: 0 | J74: 18.28688465 | K74: 0
A75: 2009-01-01T18:15:00 | B75: 420 | C75: 70 | D75: 5 | E75: 415 | F75: 0 | G75: 11.64874552 | H75: 58.35125448 | I75: 0 | J75: 18.28688465 | K75: 0
A76: 2009-01-01T18:30:00 | B76: 416 | C76: 70 | D76: 5 | E76: 411 | F76: 0 | G76: 11.64874552 | H76: 58.35125448 | I76: 0 | J76: 18.28688465 | K76: 0
A77: 2009-01-01T18:45:00 | B77: 416 | C77: 70 | D77: 5 | E77: 411 | F77: 0 | G77: 11.64874552 | H77: 58.35125448 | I77: 0 | J77: 18.28688465 | K77: 0
A78: 2009-01-01T19:00:00 | B78: 404 | C78: 70 | D78: 5 | E78: 399 | F78: 0 | G78: 11.64874552 | H78: 58.35125448 | I78: 0 | J78: 18.28688465 | K78: 0
A79: 2009-01-01T19:15:00 | B79: 416 | C79: 70 | D79: 5 | E79: 411 | F79: 0 | G79: 11.64874552 | H79: 58.35125448 | I79: 0 | J79: 18.28688465 | K79: 0
A80: 2009-01-01T19:30:00 | B80: 408 | C80: 70 | D80: 5 | E80: 403 | F80: 0 | G80: 11.64874552 | H80: 58.35125448 | I80: 0 | J80: 18.28688465 | K80: 0
A81: 2009-01-01T19:45:00 | B81: 408 | C81: 70 | D81: 5 | E81: 403 | F81: 0 | G81: 11.64874552 | H81: 58.35125448 | I81: 0 | J81: 18.28688465 | K81: 0
A82: 2009-01-01T20:00:00 | B82: 392 | C82: 70 | D82: 5 | E82: 387 | F82: 0 | G82: 11.64874552 | H82: 58.35125448 | I82: 0 | J82: 18.28688465 | K82: 0
A83: 2009-01-01T20:15:00 | B83: 400 | C83: 70 | D83: 5 | E83: 395 | F83: 0 | G83: 11.64874552 | H83: 58.35125448 | I83: 0 | J83: 18.28688465 | K83: 0
A84: 2009-01-01T20:30:00 | B84: 388 | C84: 70 | D84: 5 | E84: 383 | F84: 0 | G84: 11.64874552 | H84: 58.35125448 | I84: 0 | J84: 18.28688465 | K84: 0
A85: 2009-01-01T20:45:00 | B85: 396 | C85: 70 | D85: 5 | E85: 391 | F85: 0 | G85: 11.64874552 | H85: 58.35125448 | I85: 0 | J85: 18.28688465 | K85: 0
A86: 2009-01-01T21:00:00 | B86: 388 | C86: 70 | D86: 5 | E86: 383 | F86: 0 | G86: 11.64874552 | H86: 58.35125448 | I86: 0 | J86: 18.28688465 | K86: 0
A87: 2009-01-01T21:15:00 | B87: 384 | C87: 70 | D87: 5 | E87: 379 | F87: 0 | G87: 11.64874552 | H87: 58.35125448 | I87: 0 | J87: 18.28688465 | K87: 0
A88: 2009-01-01T21:30:00 | B88: 392 | C88: 70 | D88: 5 | E88: 387 | F88: 0 | G88: 11.64874552 | H88: 58.35125448 | I88: 0 | J88: 18.28688465 | K88: 0
A89: 2009-01-01T21:45:00 | B89: 388 | C89: 70 | D89: 5 | E89: 383 | F89: 0 | G89: 11.64874552 | H89: 58.35125448 | I89: 0 | J89: 18.28688465 | K89: 0
A90: 2009-01-01T22:00:00 | B90: 380 | C90: 70 | D90: 5 | E90: 375 | F90: 0 | G90: 11.64874552 | H90: 58.35125448 | I90: 0 | J90: 18.28688465 | K90: 0
A91: 2009-01-01T22:15:00 | B91: 376 | C91: 70 | D91: 5 | E91: 371 | F91: 0 | G91: 11.64874552 | H91: 58.35125448 | I91: 0 | J91: 18.28688465 | K91: 0
A92: 2009-01-01T22:30:00 | B92: 368 | C92: 70 | D92: 5 | E92: 363 | F92: 0 | G92: 11.64874552 | H92: 58.35125448 | I92: 0 | J92: 18.28688465 | K92: 0
A93: 2009-01-01T22:45:00 | B93: 364 | C93: 70 | D93: 5 | E93: 359 | F93: 0 | G93: 11.64874552 | H93: 58.35125448 | I93: 0 | J93: 18.28688465 | K93: 0
A94: 2009-01-01T23:00:00 | B94: 364 | C94: 70 | D94: 5 | E94: 359 | F94: 0 | G94: 11.64874552 | H94: 58.35125448 | I94: 0 | J94: 18.28688465 | K94: 0
A95: 2009-01-01T23:15:00 | B95: 356 | C95: 70 | D95: 5 | E95: 351 | F95: 0 | G95: 11.64874552 | H95: 58.35125448 | I95: 0 | J95: 18.28688465 | K95: 0
A96: 2009-01-01T23:30:00 | B96: 368 | C96: 70 | D96: 5 | E96: 363 | F96: 0 | G96: 11.64874552 | H96: 58.35125448 | I96: 0 | J96: 18.28688465 | K96: 0
A97: 2009-01-01T23:45:00 | B97: 356 | C97: 70 | D97: 5 | E97: 351 | F97: 0 | G97: 11.64874552 | H97: 58.35125448 | I97: 0 | J97: 18.28688465 | K97: 0
A98: 2009-01-02 | B98: 372 | C98: 70 | D98: 5 | E98: 367 | F98: 0 | G98: 11.64874552 | H98: 58.35125448 | I98: 0 | J98: 18.28688465 | K98: 0
A99: 2009-01-02T00:15:00 | B99: 360 | C99: 70 | D99: 5 | E99: 355 | F99: 0 | G99: 11.64874552 | H99: 58.35125448 | I99: 0 | J99: 18.28688465 | K99: 0
A100: 2009-01-02T00:30:00 | B100: 364 | C100: 70 | D100: 5 | E100: 359 | F100: 0 | G100: 11.64874552 | H100: 58.35125448 | I100: 0 | J100: 18.28688465 | K100: 0
A101: 2009-01-02T00:45:00 | B101: 352 | C101: 70 | D101: 5 | E101: 347 | F101: 0 | G101: 11.64874552 | H101: 58.35125448 | I101: 0 | J101: 18.28688465 | K101: 0
A102: 2009-01-02T01:00:00 | B102: 352 | C102: 70 | D102: 5 | E102: 347 | F102: 0 | G102: 11.64874552 | H102: 58.35125448 | I102: 0 | J102: 18.28688465 | K102: 0
A103: 2009-01-02T01:15:00 | B103: 344 | C103: 70 | D103: 5 | E103: 339 | F103: 0 | G103: 11.64874552 | H103: 58.35125448 | I103: 0 | J103: 18.28688465 | K103: 0
A104: 2009-01-02T01:30:00 | B104: 360 | C104: 70 | D104: 5 | E104: 355 | F104: 0 | G104: 11.64874552 | H104: 58.35125448 | I104: 0 | J104: 18.28688465 | K104: 0
A105: 2009-01-02T01:45:00 | B105: 344 | C105: 70 | D105: 5 | E105: 339 | F105: 0 | G105: 11.64874552 | H105: 58.35125448 | I105: 0 | J105: 18.28688465 | K105: 0
A106: 2009-01-02T02:00:00 | B106: 356 | C106: 70 | D106: 5 | E106: 351 | F106: 0 | G106: 11.64874552 | H106: 58.35125448 | I106: 0 | J106: 18.28688465 | K106: 0
A107: 2009-01-02T02:15:00 | B107: 344 | C107: 70 | D107: 5 | E107: 339 | F107: 0 | G107: 11.64874552 | H107: 58.35125448 | I107: 0 | J107: 18.28688465 | K107: 0
A108: 2009-01-02T02:30:00 | B108: 344 | C108: 70 | D108: 5 | E108: 339 | F108: 0 | G108: 11.64874552 | H108: 58.35125448 | I108: 0 | J108: 18.28688465 | K108: 0
A109: 2009-01-02T02:45:00 | B109: 340 | C109: 70 | D109: 5 | E109: 335 | F109: 0 | G109: 11.64874552 | H109: 58.35125448 | I109: 0 | J109: 18.28688465 | K109: 0
A110: 2009-01-02T03:00:00 | B110: 340 | C110: 70 | D110: 5 | E110: 335 | F110: 0 | G110: 11.64874552 | H110: 58.35125448 | I110: 0 | J110: 18.28688465 | K110: 0
A111: 2009-01-02T03:15:00 | B111: 336 | C111: 70 | D111: 5 | E111: 331 | F111: 0 | G111: 11.64874552 | H111: 58.35125448 | I111: 0 | J111: 18.28688465 | K111: 0
A112: 2009-01-02T03:30:00 | B112: 340 | C112: 70 | D112: 5 | E112: 335 | F112: 0 | G112: 11.64874552 | H112: 58.35125448 | I112: 0 | J112: 18.28688465 | K112: 0
A113: 2009-01-02T03:45:00 | B113: 340 | C113: 70 | D113: 5 | E113: 335 | F113: 0 | G113: 11.64874552 | H113: 58.35125448 | I113: 0 | J113: 18.28688465 | K113: 0
A114: 2009-01-02T04:00:00 | B114: 340 | C114: 70 | D114: 5 | E114: 335 | F114: 0 | G114: 11.64874552 | H114: 58.35125448 | I114: 0 | J114: 18.28688465 | K114: 0
A115: 2009-01-02T04:15:00 | B115: 348 | C115: 70 | D115: 5 | E115: 343 | F115: 0 | G115: 11.64874552 | H115: 58.35125448 | I115: 0 | J115: 18.28688465 | K115: 0
A116: 2009-01-02T04:30:00 | B116: 356 | C116: 70 | D116: 5 | E116: 351 | F116: 0 | G116: 11.64874552 | H116: 58.35125448 | I116: 0 | J116: 18.28688465 | K116: 0
A117: 2009-01-02T04:45:00 | B117: 352 | C117: 70 | D117: 5 | E117: 347 | F117: 0 | G117: 11.64874552 | H117: 58.35125448 | I117: 0 | J117: 18.28688465 | K117: 0
A118: 2009-01-02T05:00:00 | B118: 368 | C118: 70 | D118: 5 | E118: 363 | F118: 0 | G118: 11.64874552 | H118: 58.35125448 | I118: 0 | J118: 18.28688465 | K118: 0
A119: 2009-01-02T05:15:00 | B119: 348 | C119: 70 | D119: 5 | E119: 343 | F119: 0 | G119: 11.64874552 | H119: 58.35125448 | I119: 0 | J119: 18.28688465 | K119: 0
A120: 2009-01-02T05:30:00 | B120: 436 | C120: 70 | D120: 5 | E120: 431 | F120: 0 | G120: 11.64874552 | H120: 58.35125448 | I120: 0 | J120: 18.28688465 | K120: 0
A121: 2009-01-02T05:45:00 | B121: 468 | C121: 70 | D121: 5 | E121: 463 | F121: 0 | G121: 11.64874552 | H121: 58.35125448 | I121: 0 | J121: 18.28688465 | K121: 0
A122: 2009-01-02T06:00:00 | B122: 516 | C122: 70 | D122: 5 | E122: 511 | F122: 0 | G122: 11.64874552 | H122: 58.35125448 | I122: 0 | J122: 18.28688465 | K122: 0
A123: 2009-01-02T06:15:00 | B123: 528 | C123: 70 | D123: 5 | E123: 523 | F123: 0 | G123: 11.64874552 | H123: 58.35125448 | I123: 0 | J123: 18.28688465 | K123: 0
A124: 2009-01-02T06:30:00 | B124: 544 | C124: 70 | D124: 5 | E124: 539 | F124: 0 | G124: 11.64874552 | H124: 58.35125448 | I124: 0 | J124: 18.28688465 | K124: 0
A125: 2009-01-02T06:45:00 | B125: 568 | C125: 70 | D125: 5 | E125: 563 | F125: 0 | G125: 11.64874552 | H125: 58.35125448 | I125: 0 | J125: 18.28688465 | K125: 0
A126: 2009-01-02T07:00:00 | B126: 592 | C126: 70 | D126: 5 | E126: 587 | F126: 0 | G126: 11.64874552 | H126: 58.35125448 | I126: 0 | J126: 18.28688465 | K126: 0
A127: 2009-01-02T07:15:00 | B127: 616 | C127: 70 | D127: 5 | E127: 611 | F127: 0 | G127: 11.64874552 | H127: 58.35125448 | I127: 0 | J127: 18.28688465 | K127: 0
A128: 2009-01-02T07:30:00 | B128: 624 | C128: 70 | D128: 5 | E128: 619 | F128: 0 | G128: 11.64874552 | H128: 58.35125448 | I128: 0 | J128: 18.28688465 | K128: 0
A129: 2009-01-02T07:45:00 | B129: 664 | C129: 70 | D129: 5 | E129: 659 | F129: 0 | G129: 11.64874552 | H129: 58.35125448 | I129: 0 | J129: 18.28688465 | K129: 0
A130: 2009-01-02T08:00:00 | B130: 652 | C130: 70 | D130: 5 | E130: 647 | F130: 0 | G130: 11.64874552 | H130: 58.35125448 | I130: 0 | J130: 18.28688465 | K130: 0
A131: 2009-01-02T08:15:00 | B131: 660 | C131: 70 | D131: 5 | E131: 655 | F131: 0 | G131: 11.64874552 | H131: 58.35125448 | I131: 0 | J131: 18.28688465 | K131: 0
A132: 2009-01-02T08:30:00 | B132: 696 | C132: 70 | D132: 5 | E132: 691 | F132: 0 | G132: 11.64874552 | H132: 58.35125448 | I132: 0 | J132: 18.28688465 | K132: 0
A133: 2009-01-02T08:45:00 | B133: 696 | C133: 70 | D133: 5 | E133: 691 | F133: 0 | G133: 11.64874552 | H133: 58.35125448 | I133: 0 | J133: 18.28688465 | K133: 0
A134: 2009-01-02T09:00:00 | B134: 676 | C134: 70 | D134: 5 | E134: 671 | F134: 0 | G134: 11.64874552 | H134: 58.35125448 | I134: 0 | J134: 18.28688465 | K134: 0
A135: 2009-01-02T09:15:00 | B135: 648 | C135: 70 | D135: 5 | E135: 643 | F135: 0 | G135: 11.64874552 | H135: 58.35125448 | I135: 0 | J135: 18.28688465 | K135: 0
A136: 2009-01-02T09:30:00 | B136: 656 | C136: 70 | D136: 5 | E136: 651 | F136: 0 | G136: 11.64874552 | H136: 58.35125448 | I136: 0 | J136: 18.28688465 | K136: 0
A137: 2009-01-02T09:45:00 | B137: 680 | C137: 70 | D137: 5 | E137: 675 | F137: 0 | G137: 11.64874552 | H137: 58.35125448 | I137: 0 | J137: 18.28688465 | K137: 0
A138: 2009-01-02T10:00:00 | B138: 672 | C138: 70 | D138: 5 | E138: 667 | F138: 0 | G138: 11.64874552 | H138: 58.35125448 | I138: 0 | J138: 18.28688465 | K138: 0
A139: 2009-01-02T10:15:00 | B139: 696 | C139: 70 | D139: 5 | E139: 691 | F139: 0 | G139: 11.64874552 | H139: 58.35125448 | I139: 0 | J139: 18.28688465 | K139: 0
A140: 2009-01-02T10:30:00 | B140: 684 | C140: 70 | D140: 5 | E140: 679 | F140: 0 | G140: 11.64874552 | H140: 58.35125448 | I140: 0 | J140: 18.28688465 | K140: 0
A141: 2009-01-02T10:45:00 | B141: 640 | C141: 70 | D141: 5 | E141: 635 | F141: 0 | G141: 11.64874552 | H141: 58.35125448 | I141: 0 | J141: 18.28688465 | K141: 0
A142: 2009-01-02T11:00:00 | B142: 624 | C142: 70 | D142: 5 | E142: 619 | F142: 0 | G142: 11.64874552 | H142: 58.35125448 | I142: 0 | J142: 18.28688465 | K142: 0
A143: 2009-01-02T11:15:00 | B143: 628 | C143: 70 | D143: 5 | E143: 623 | F143: 0 | G143: 11.64874552 | H143: 58.35125448 | I143: 0 | J143: 18.28688465 | K143: 0
A144: 2009-01-02T11:30:00 | B144: 652 | C144: 70 | D144: 5 | E144: 647 | F144: 0 | G144: 11.64874552 | H144: 58.35125448 | I144: 0 | J144: 18.28688465 | K144: 0
A145: 2009-01-02T11:45:00 | B145: 656 | C145: 70 | D145: 5 | E145: 651 | F145: 0 | G145: 11.64874552 | H145: 58.35125448 | I145: 0 | J145: 18.28688465 | K145: 0
A146: 2009-01-02T12:00:00 | B146: 668 | C146: 70 | D146: 5 | E146: 663 | F146: 0 | G146: 11.64874552 | H146: 58.35125448 | I146: 0 | J146: 18.28688465 | K146: 0
A147: 2009-01-02T12:15:00 | B147: 672 | C147: 70 | D147: 5 | E147: 667 | F147: 0 | G147: 11.64874552 | H147: 58.35125448 | I147: 0 | J147: 18.28688465 | K147: 0
A148: 2009-01-02T12:30:00 | B148: 668 | C148: 70 | D148: 5 | E148: 663 | F148: 0 | G148: 11.64874552 | H148: 58.35125448 | I148: 0 | J148: 18.28688465 | K148: 0
A149: 2009-01-02T12:45:00 | B149: 608 | C149: 70 | D149: 5 | E149: 603 | F149: 0 | G149: 11.64874552 | H149: 58.35125448 | I149: 0 | J149: 18.28688465 | K149: 0
A150: 2009-01-02T13:00:00 | B150: 584 | C150: 70 | D150: 5 | E150: 579 | F150: 0 | G150: 11.64874552 | H150: 58.35125448 | I150: 0 | J150: 18.28688465 | K150: 0
A151: 2009-01-02T13:15:00 | B151: 572 | C151: 70 | D151: 5 | E151: 567 | F151: 0 | G151: 11.64874552 | H151: 58.35125448 | I151: 0 | J151: 18.28688465 | K151: 0
A152: 2009-01-02T13:30:00 | B152: 596 | C152: 70 | D152: 5 | E152: 591 | F152: 0 | G152: 11.64874552 | H152: 58.35125448 | I152: 0 | J152: 18.28688465 | K152: 0
A153: 2009-01-02T13:45:00 | B153: 592 | C153: 70 | D153: 5 | E153: 587 | F153: 0 | G153: 11.64874552 | H153: 58.35125448 | I153: 0 | J153: 18.28688465 | K153: 0
A154: 2009-01-02T14:00:00 | B154: 600 | C154: 70 | D154: 5 | E154: 595 | F154: 0 | G154: 11.64874552 | H154: 58.35125448 | I154: 0 | J154: 18.28688465 | K154: 0
A155: 2009-01-02T14:15:00 | B155: 608 | C155: 70 | D155: 5 | E155: 603 | F155: 0 | G155: 11.64874552 | H155: 58.35125448 | I155: 0 | J155: 18.28688465 | K155: 0
A156: 2009-01-02T14:30:00 | B156: 576 | C156: 70 | D156: 5 | E156: 571 | F156: 0 | G156: 11.64874552 | H156: 58.35125448 | I156: 0 | J156: 18.28688465 | K156: 0
A157: 2009-01-02T14:45:00 | B157: 568 | C157: 70 | D157: 5 | E157: 563 | F157: 0 | G157: 11.64874552 | H157: 58.35125448 | I157: 0 | J157: 18.28688465 | K157: 0
A158: 2009-01-02T15:00:00 | B158: 572 | C158: 70 | D158: 5 | E158: 567 | F158: 0 | G158: 11.64874552 | H158: 58.35125448 | I158: 0 | J158: 18.28688465 | K158: 0
A159: 2009-01-02T15:15:00 | B159: 548 | C159: 70 | D159: 5 | E159: 543 | F159: 0 | G159: 11.64874552 | H159: 58.35125448 | I159: 0 | J159: 18.28688465 | K159: 0
A160: 2009-01-02T15:30:00 | B160: 596 | C160: 70 | D160: 5 | E160: 591 | F160: 0 | G160: 11.64874552 | H160: 58.35125448 | I160: 0 | J160: 18.28688465 | K160: 0
A161: 2009-01-02T15:45:00 | B161: 572 | C161: 70 | D161: 5 | E161: 567 | F161: 0 | G161: 11.64874552 | H161: 58.35125448 | I161: 0 | J161: 18.28688465 | K161: 0
A162: 2009-01-02T16:00:00 | B162: 536 | C162: 70 | D162: 5 | E162: 531 | F162: 0 | G162: 11.64874552 | H162: 58.35125448 | I162: 0 | J162: 18.28688465 | K162: 0
A163: 2009-01-02T16:15:00 | B163: 508 | C163: 70 | D163: 5 | E163: 503 | F163: 0 | G163: 11.64874552 | H163: 58.35125448 | I163: 0 | J163: 18.28688465 | K163: 0
A164: 2009-01-02T16:30:00 | B164: 516 | C164: 70 | D164: 5 | E164: 511 | F164: 0 | G164: 11.64874552 | H164: 58.35125448 | I164: 0 | J164: 18.28688465 | K164: 0
A165: 2009-01-02T16:45:00 | B165: 508 | C165: 70 | D165: 5 | E165: 503 | F165: 0 | G165: 11.64874552 | H165: 58.35125448 | I165: 0 | J165: 18.28688465 | K165: 0
A166: 2009-01-02T17:00:00 | B166: 492 | C166: 70 | D166: 5 | E166: 487 | F166: 0 | G166: 11.64874552 | H166: 58.35125448 | I166: 0 | J166: 18.28688465 | K166: 0
A167: 2009-01-02T17:15:00 | B167: 496 | C167: 70 | D167: 5 | E167: 491 | F167: 0 | G167: 11.64874552 | H167: 58.35125448 | I167: 0 | J167: 18.28688465 | K167: 0
A168: 2009-01-02T17:30:00 | B168: 496 | C168: 70 | D168: 5 | E168: 491 | F168: 0 | G168: 11.64874552 | H168: 58.35125448 | I168: 0 | J168: 18.28688465 | K168: 0
A169: 2009-01-02T17:45:00 | B169: 480 | C169: 70 | D169: 5 | E169: 475 | F169: 0 | G169: 11.64874552 | H169: 58.35125448 | I169: 0 | J169: 18.28688465 | K169: 0
A170: 2009-01-02T18:00:00 | B170: 480 | C170: 70 | D170: 5 | E170: 475 | F170: 0 | G170: 11.64874552 | H170: 58.35125448 | I170: 0 | J170: 18.28688465 | K170: 0
A171: 2009-01-02T18:15:00 | B171: 484 | C171: 70 | D171: 5 | E171: 479 | F171: 0 | G171: 11.64874552 | H171: 58.35125448 | I171: 0 | J171: 18.28688465 | K171: 0
A172: 2009-01-02T18:30:00 | B172: 484 | C172: 70 | D172: 5 | E172: 479 | F172: 0 | G172: 11.64874552 | H172: 58.35125448 | I172: 0 | J172: 18.28688465 | K172: 0
A173: 2009-01-02T18:45:00 | B173: 488 | C173: 70 | D173: 5 | E173: 483 | F173: 0 | G173: 11.64874552 | H173: 58.35125448 | I173: 0 | J173: 18.28688465 | K173: 0
A174: 2009-01-02T19:00:00 | B174: 460 | C174: 70 | D174: 5 | E174: 455 | F174: 0 | G174: 11.64874552 | H174: 58.35125448 | I174: 0 | J174: 18.28688465 | K174: 0
A175: 2009-01-02T19:15:00 | B175: 456 | C175: 70 | D175: 5 | E175: 451 | F175: 0 | G175: 11.64874552 | H175: 58.35125448 | I175: 0 | J175: 18.28688465 | K175: 0
A176: 2009-01-02T19:30:00 | B176: 444 | C176: 70 | D176: 5 | E176: 439 | F176: 0 | G176: 11.64874552 | H176: 58.35125448 | I176: 0 | J176: 18.28688465 | K176: 0
A177: 2009-01-02T19:45:00 | B177: 432 | C177: 70 | D177: 5 | E177: 427 | F177: 0 | G177: 11.64874552 | H177: 58.35125448 | I177: 0 | J177: 18.28688465 | K177: 0
A178: 2009-01-02T20:00:00 | B178: 424 | C178: 70 | D178: 5 | E178: 419 | F178: 0 | G178: 11.64874552 | H178: 58.35125448 | I178: 0 | J178: 18.28688465 | K178: 0
A179: 2009-01-02T20:15:00 | B179: 428 | C179: 70 | D179: 5 | E179: 423 | F179: 0 | G179: 11.64874552 | H179: 58.35125448 | I179: 0 | J179: 18.28688465 | K179: 0
A180: 2009-01-02T20:30:00 | B180: 416 | C180: 70 | D180: 5 | E180: 411 | F180: 0 | G180: 11.64874552 | H180: 58.35125448 | I180: 0 | J180: 18.28688465 | K180: 0
A181: 2009-01-02T20:45:00 | B181: 428 | C181: 70 | D181: 5 | E181: 423 | F181: 0 | G181: 11.64874552 | H181: 58.35125448 | I181: 0 | J181: 18.28688465 | K181: 0
A182: 2009-01-02T21:00:00 | B182: 424 | C182: 70 | D182: 5 | E182: 419 | F182: 0 | G182: 11.64874552 | H182: 58.35125448 | I182: 0 | J182: 18.28688465 | K182: 0
A183: 2009-01-02T21:15:00 | B183: 416 | C183: 70 | D183: 5 | E183: 411 | F183: 0 | G183: 11.64874552 | H183: 58.35125448 | I183: 0 | J183: 18.28688465 | K183: 0
A184: 2009-01-02T21:30:00 | B184: 408 | C184: 70 | D184: 5 | E184: 403 | F184: 0 | G184: 11.64874552 | H184: 58.35125448 | I184: 0 | J184: 18.28688465 | K184: 0
A185: 2009-01-02T21:45:00 | B185: 412 | C185: 70 | D185: 5 | E185: 407 | F185: 0 | G185: 11.64874552 | H185: 58.35125448 | I185: 0 | J185: 18.28688465 | K185: 0
A186: 2009-01-02T22:00:00 | B186: 420 | C186: 70 | D186: 5 | E186: 415 | F186: 0 | G186: 11.64874552 | H186: 58.35125448 | I186: 0 | J186: 18.28688465 | K186: 0
A187: 2009-01-02T22:15:00 | B187: 408 | C187: 70 | D187: 5 | E187: 403 | F187: 0 | G187: 11.64874552 | H187: 58.35125448 | I187: 0 | J187: 18.28688465 | K187: 0
A188: 2009-01-02T22:30:00 | B188: 384 | C188: 70 | D188: 5 | E188: 379 | F188: 0 | G188: 11.64874552 | H188: 58.35125448 | I188: 0 | J188: 18.28688465 | K188: 0
A189: 2009-01-02T22:45:00 | B189: 388 | C189: 70 | D189: 5 | E189: 383 | F189: 0 | G189: 11.64874552 | H189: 58.35125448 | I189: 0 | J189: 18.28688465 | K189: 0
A190: 2009-01-02T23:00:00 | B190: 384 | C190: 70 | D190: 5 | E190: 379 | F190: 0 | G190: 11.64874552 | H190: 58.35125448 | I190: 0 | J190: 18.28688465 | K190: 0
A191: 2009-01-02T23:15:00 | B191: 388 | C191: 70 | D191: 5 | E191: 383 | F191: 0 | G191: 11.64874552 | H191: 58.35125448 | I191: 0 | J191: 18.28688465 | K191: 0
A192: 2009-01-02T23:30:00 | B192: 384 | C192: 70 | D192: 5 | E192: 379 | F192: 0 | G192: 11.64874552 | H192: 58.35125448 | I192: 0 | J192: 18.28688465 | K192: 0
A193: 2009-01-02T23:45:00 | B193: 400 | C193: 70 | D193: 5 | E193: 395 | F193: 0 | G193: 11.64874552 | H193: 58.35125448 | I193: 0 | J193: 18.28688465 | K193: 0
A194: 2009-01-03 | B194: 388 | C194: 70 | D194: 5 | E194: 383 | F194: 0 | G194: 11.64874552 | H194: 58.35125448 | I194: 0 | J194: 18.28688465 | K194: 0
A195: 2009-01-03T00:15:00 | B195: 372 | C195: 70 | D195: 5 | E195: 367 | F195: 0 | G195: 11.64874552 | H195: 58.35125448 | I195: 0 | J195: 18.28688465 | K195: 0
A196: 2009-01-03T00:30:00 | B196: 384 | C196: 70 | D196: 5 | E196: 379 | F196: 0 | G196: 11.64874552 | H196: 58.35125448 | I196: 0 | J196: 18.28688465 | K196: 0
A197: 2009-01-03T00:45:00 | B197: 380 | C197: 70 | D197: 5 | E197: 375 | F197: 0 | G197: 11.64874552 | H197: 58.35125448 | I197: 0 | J197: 18.28688465 | K197: 0
A198: 2009-01-03T01:00:00 | B198: 384 | C198: 70 | D198: 5 | E198: 379 | F198: 0 | G198: 11.64874552 | H198: 58.35125448 | I198: 0 | J198: 18.28688465 | K198: 0
A199: 2009-01-03T01:15:00 | B199: 368 | C199: 70 | D199: 5 | E199: 363 | F199: 0 | G199: 11.64874552 | H199: 58.35125448 | I199: 0 | J199: 18.28688465 | K199: 0
A200: 2009-01-03T01:30:00 | B200: 372 | C200: 70 | D200: 5 | E200: 367 | F200: 0 | G200: 11.64874552 | H200: 58.35125448 | I200: 0 | J200: 18.28688465 | K200: 0
... 4300 more rows

Sheet test
A1: FICHE TECHNIQUE DE LA COGENERATION OPTIMALE
A3: Chaufferie actuelle
A5: Rendement considéré : | B5: 0.8
A7: Cogénération
A8: Marque : | B8: Etude de
A9: Type : | B9: marché 2005
A10: Combustible : | B10: gaz/gas
A11: Puissance nominale électrique (hors auxiliaires électriques) : | B11: 5 | C11: kWé
A12: Puissance appelée par les auxiliaires électriques : | B12: 0.1 | C12: kWé
A13: Puissance nominale thermique : | B13: 11.41577061 | C13: kWth
A14: Rendement électrique à charge nominale : | B14: 0.279
A15: Rendement électrique à mi-charge : | B15: 0.251
A16: Rendement thermique à charge nominale : | B16: 0.637
A17: Rendement moyen électrique : | B17: 0.27342
A19: Rendement moyen chaleur : | B19: 0.637
A21: Rendement moyen de fonctionnement : | B21: =B17+B19 -> 0.91042
A23: Nombre d'heures de fonctionnement : | B23: 8759.75 | C23: heures/an
A24: Nombre de démarrages : | B24: 0 | C24: démarrages
A26: BILAN ENERGETIQUE
A28: Energie électrique consommée avant cogénération : | B28: 4956554 | C28: kWhé/an
A29: Combustible consommé avant cogénération : | B29: =IF(B5=0,0,B30/B5) -> 766500 | C29: kWhcomb/an
A30: Besoins thermiques nets avant cogénération : | B30: =SUM(VarDeriv!$C$2:$C$35041)/4 -> 613200 | C30: kWhth/an | F30: Injection électrique | J30: 0.8
A31: Energie primaire consommée par la cogénération : | B31: =IF(B17=0,0,B38/B17) -> 160188.5378 | C31: kWhcomb/an | F31: Pas de rejet chaleur | J31: 0.6
A32: Chaleur utile produite par la cogénération : | B32: =B31*B19 -> 102040.0986 | C32: kWhth/an | J32: 0.8
C33: kWhé/an
A34: Economie combustible correspondante pour la chaufferie : | B34: =IF(B5=0,0,B32/B5) -> 127550.1232 | C34: kWhcomb/an | F34: Région wallonne | J34: 0
A35: Chaleur utile encore à produire par la chaufferie : | B35: 511159.9014 | C35: kWhth/an | E35: Prix : | F35: 75 | G35: €
A36: Consommation correspondante par la chaufferie : | B36: =IF(B5=0,0,B35/B5) -> 638949.8768 | C36: kWhcomb/an | J36: 00:00:00
C37: kWhth/an
A38: Energie électrique produite par la cogénération : | B38: 43798.75 | C38: kWhé/an | F38: Forfait | J38: 23:45:00
C39: kWhé/an
A40: dont énergie électrique revendue au réseau : | B40: 0 | C40: kWhé/an
A41: dont énergie électrique auto-consommée : | B41: =B38-B40 -> 43798.75 | C41: kWhé/an | J41: Temps de retour
A42: Energie électrique consommée après cogénération : | B42: 4912755.25 | C42: kWhé/an | F42: 110
F43: 115.5 | J43: Désactivé
A44: BILAN ECONOMIQUE | F44: 40 | J44: -
A46: Situation actuelle sans cogénération | J46: -
A49: Coûts | J49: -
B50: 218416.191
A51: Montant facture électricité : | B51: 545220.94 | C51: €/an | F51: 32.8
B52: 81102.31783
A53: Montant facture combustible : | B53: 25141.2 | C53: €/an | F53: 32.8
A55: Montant facture énergie globale : | B55: =B51+B53 -> 570362.14 | C55: €/an
A57: Situation future avec cogénération
A60: Coûts
B61: 1328170.73
A62: Montant facture électricité : | B62: 567423.2314 | C62: €/an
B63: 109012.8716
A64: Montant facture combustible : | B64: 26211.74 | C64: €/an
B65: 14385.32479
A66: Montant entretien pour la cogénération : | B66: 1927.145 | C66: €/an | M66: 0 | N66: 1 | O66: 2 | P66: 3 | Q66: 4 | R66: 5 | S66: 6 | T66: 7 | U66: 8 | V66: 9 | W66: 10
A68: Montant facture énergie globale : | B68: =IF(B64="Inconnue","Inconnue",B62+B64+B66) -> 595562.1164 | C68: €/an | K68: =Param!AX2 -> 0.03 | L68: gain élec | M68: =B51-B62+B73 -> -22202.29138 | N68: =$M68*(1+$K68)^N$66 -> -22868.36012 | O68: -23554.41092 | P68: -24261.04325 | Q68: -24988.87454 | R68: -25738.54078 | S68: -26510.697 | T68: -27306.01791 | U68: -28125.19845 | V68: -28968.95441 | W68: -29838.02304
A71: Gain | K71: =0 -> 0 | L71: gain CV | M71: =B77 -> 1298.85675 | N71: =$M71*(1+$K71)^N$66 -> 1298.85675 | O71: 1298.85675 | P71: 1298.85675 | Q71: 1298.85675 | R71: 1298.85675 | S71: 1298.85675 | T71: 1298.85675 | U71: 1298.85675 | V71: 1298.85675 | W71: 1298.85675
B72: 1656.109652
A73: Revente de l'électricité injectée : | B73: 0 | C73: €/an | K73: =Param!AY2 -> 0.03 | L73: dépense comb | M73: =-(B64-B53) -> -1070.539998 | N73: =$M73*(1+$K73)^N$66 -> -1102.656198 | O73: -1135.735884 | P73: -1169.80796 | Q73: -1204.902199 | R73: -1241.049265 | S73: -1278.280743 | T73: -1316.629165 | U73: -1356.12804 | V73: -1396.811882 | W73: -1438.716238
A75: Economie annuelle sans C.V. : | B75: =IF(B68="Inconnue","Inconnue",B55-B68+B73) -> -25199.97637 | C75: €/an | K75: =Param!AZ2 -> 0.02 | L75: dépense entretiens | M75: =-B66 -> -1927.145 | N75: =$M75*(1+$K75)^N$66 -> -1965.6879 | O75: -2005.001658 | P75: -2045.101691 | Q75: -2086.003725 | R75: -2127.723799 | S75: -2170.278275 | T75: -2213.683841 | U75: -2257.957518 | V75: -2303.116668 | W75: -2349.179002
A76: Taux d'économie en CO2 : | B76: 0.3954014669 | K76: =Param!BA2 -> 0.05 | L76: =L83 -> 5.707925454 | M76: =-B87 -> -24425.4864 | N76: =IF(N66<=$L$76,SUM(N68:N75),IF((N66-$L$76)<1,($L$76-(N66-1))*SUM(N68:N75),0)) -> -24637.84746 | O76: -25396.29171 | P76: -26177.09615 | Q76: -26980.92372 | R76: -27808.4571 | S76: -20289.42618 | T76: 0 | U76: 0 | V76: 0 | W76: 0
A77: Certificats verts : | B77: 1298.85675 | C77: €/an | L77: =B23 -> 8759.75
B78: -1131314.341
A79: Economie annuelle avec C.V. : | B79: -23901.11962 | C79: €/an | L79: =Param!AW2 -> 50000 | M79: =NPV(0.05,N76:T76) -> -128238.7704
A81: Economie annuelle avec C.V. sans pointe annuelle en hiver:
B82: 262338.529
A83: Investissement groupe cogéneration & stockage de chaleur éventuel : | B83: 21808.47 | C83: € | L83: =L79/L77 -> 5.707925454 | M83: -96924.684 | N83: 26178.81612 | O83: 26739.23269 | P83: 27333.18935 | Q83: 27962.47347 | R83: 28628.96404 | S83: 29334.63621 | T83: =SUM(T68:T75) -> -29537.47417
A84: Facteur de sur-investissement : | B84: 0.4 | M84: =NPV(0.05,N83:T83) -> 119131.4791
A85: Investissement BRUT : | B85: =B83*(1+B84) -> 30531.858 | C85: €
A86: Aide à l'investissement : | B86: 6106.3716 | C86: €
A87: Investissement NET : | B87: 24425.4864 | C87: € | M87: =M76+M79-(T76/1.05^7)+T76/(1.05^L76) -> -152664.2568
B88: -8560437.084
A89: Temps de Retour Simple (TRS) : | B89: Negatif | C89: années
B90: Introuvable
A91: Valeur Actualisée Nette (VAN) des gains : | B91: -152705.4016 | C91: €/durée vie
A92: Taux de Rentabilité Interne (TRI) : | B92: =IRR(M76:W76) ->  | C92: %/an
A93: Détails de la facturation électrique après cogénération
B94: 26185.94426
A95: Pour la puissance appelée : | B95: 0 | C95: €/an | D95: 26373.33983
A96: Pour la consommation d'électricité : | B96: 0 | C96: €/an
A97: Pour l'utilisation du réseau (+ redevance) : | B97: 0 | C97: €/an
A98: Pour les surcharges diverses : | B98: 0 | C98: €/an
A99: Partie pour le fournisseur : | B99: 0 | C99: €/an
A100: Partie pour le GRD : | B100: 0 | C100: €/an
A101: Partie pour le GRT : | B101: 0 | C101: €/an
B102: Désactive
A103: Ballon tampon | B103: Désactivé
B104: -
A105: Volume du ballon tampon : | B105: - | C105: litres
A106: Coût du ballon tampon : | B106: - | C106: €
A107: Ecart de température régnant dans le ballon tampon : | B107: - | C107: °C
A108: Energie stockable dans le ballon tampon : | B108: - | C108: kWhth
B109: 1592.834731
A110: Pertes : | B110: - | C110: kWhth/an
B131: 60059.6774
B132: 23600.21567
C201: % puissance | D201: Nb heures | E201: Puissance | F201: CV | G201: VAN | H201: TRS
C202: 0-39 | D202: 0 | E202: 5 | F202: 7793.1405 | G202: -152705.4016
C203: 40-49 | D203: 0 | E203: 12 | F203: 17982.15016 | G203: -141199.8648
C204: 50-59 | D204: 0 | E204: 19 | F204: 27383.54569 | G204: -125749.9934
C205: 60-69 | D205: 0 | E205: 26 | F205: 35254.55369 | G205: -113551.7058
C206: 70-79 | D206: 0 | E206: 33 | F206: 44149.10232 | G206: -95261.47187
C207: 80-89 | D207: 0 | E207: 40 | F207: 52052.34967 | G207: -79886.26015
C208: 90-99 | D208: 0 | E208: 47 | F208: 50530.88962 | G208: -97628.30624
C209: 100 | D209: 8759.75 | E209: 54 | F209: 49250.68093 | G209: -100647.4098
E210: 61 | F210: 47467.03538 | G210: -118318.6133
E211: 68 | F211: 0 | G211: -103927.0064

Sheet Param
A1: index | B1: Fournisseur - Marque | C1: Type | D1: Combustible | E1: Puissance | F1: Rend. Elec. | G1: Rend. Elec. 1/2 | H1: Rend. Chal. | I1: Prix | J1: Entretien | K1: index | L1: Combustible | M1: Rend. Elec. | N1: Rend. Chal. | O1: Kg CO 2 | P1: Rend. Elec. Fl | Q1: Rend. Chal. Fl | R1: Rend. Elec. EU | S1: Rend. Chal. EU | T1: Prix Combustible | U1: Reseau Gaz | V1: Logement | W1: Subsidebxl | AA1: Heures jour | AB1: Prix C. Vert | AC1: Prix MwElConsAvant | AD1: Prix MwElConsApres | AE1: Prix MwElInj | AF1: Prix MwChalChaudire | AG1: RendChaudiereActuel | AH1: ? | AI1: Termes Puissance | AJ1: Termes du fournisseur | AK1: Termes GRD | AL1: Termes GRT | AM1: CoefMois(NE) | AN1: (NC) | AO1: Horaire Debut (PointeMatin,PointeSoir,Pleine) | AP1: Horaire Final | AQ1: Combustible | AR1: PCI | AS1: Unités | AU1: Surinvestissement | AV1: Subvention | AW1: DureVie | AX1: TauxElec | AY1: TauxCombus | AZ1: TauxEntretien | BA1: TauxActualisation | BC1: Jours Férie | BE1: % charge partielle | BF1: % Critique | BG1: Pourcentage Tampon | BH1: Puis max Tampon | BI1: Part des aux élec
A2: 1 | B2: De ROUCK - SENERTEC | C2: Dachs HKA 2 G5.0 Low Nox | D2: Gaz/Gas | E2: 5 | F2: 0.26 | G2: 0.22 | H2: 0.63 | I2: 19980 | J2: 0.084 | K2: 1 | L2: Biodiesel/Biodiesel | M2: 0.55 | N2: 0.9 | O2: 80 | P2: 0.43 | Q2: 0.9 | R2: 0.44 | S2: 0.89 | T2: 80 | U2: TRUE | V2: TRUE | W2: FALSE | AA2: - | AB2: 75 | AC2: 110 | AD2: 115.5 | AE2: 40 | AF2: 32.8 | AG2: 0.8 | AH2: 1 | AI2: 9.197 | AJ2: 5.391923 | AK2: 2.649612 | AL2: 8.3299 | AM2: 1.6214 | AN2: 1.349755 | AO2: 07:00:00 | AP2: 21:45:00 | AQ2: Gaz naturel | AR2: 0.9 | AS2: kWh PCS | AU2: 0.4 | AV2: 0.2 | AW2: 50000 | AX2: 0.03 | AY2: 0.03 | AZ2: 0.02 | BA2: 0.05 | BC2: 1911-01-01 | BE2: 0.8 | BF2: 0.6 | BG2: 0 | BH2: 0.8 | BI2: 2
A3: 2 | B3: De ROUCK - SENERTEC | C3: Dachs HKA 2 HR 5.3 | D3: Mazout/Stookolie | E3: 5.35 | F3: 0.3 | G3: 0.26 | H3: 0.59 | I3: 20160 | J3: 0.179 | K3: 2 | L3: Biogaz/Biogas | M3: 0.55 | N3: 0.9 | O3: 20 | P3: 0.42 | Q3: 0.7 | R3: 0.42 | S3: 0.7 | T3: 20 | AA3: 0 | AB3: Active | AD3: Facture détail | AH3: 2 | AI3: 1.512 | AJ3: 0 | AK3: 11.74 | AL3: 0.3604 | AM3: 1.6214 | AN3: 1.349755 | AQ3: Mazout | AR3: 9.9 | AS3: litre | BC3: 2003-04-21
A4: 3 | B4: De ROUCK - SENERTEC | C4: Dachs HKA 2 HR 5.3 | D4: Biodiesel/Biodiesel | E4: 5.35 | F4: 0.3 | G4: 0.26 | H4: 0.59 | I4: 20160 | J4: 0.358 | K4: 3 | L4: Bois/Hout | M4: 0.55 | N4: 0.9 | O4: 30 | P4: 0.34 | Q4: 0.9 | R4: 0.33 | S4: 0.86 | T4: 50 | AA4: 1 | AB4: TRUE | AD4: FALSE | AH4: 3 | AI4: 1.512 | AJ4: 59.9486 | AK4: 6.787 | AM4: 1.6214 | AN4: 1.349755 | AQ4: Autre | AR4: 1 | AS4: unité | BC4: 1911-05-01
A5: 4 | B5: De ROUCK - SENERTEC | C5: Dachs HKA 2 G 5.5 | D5: Gaz/Gas | E5: 5.37 | F5: 0.27 | G5: 0.23 | H5: 0.61 | I5: 19860 | J5: 0.084 | K5: 4 | L5: Gaz/Gas | M5: 0.55 | N5: 0.9 | O5: 251 | P5: 0.5 | Q5: 0.9 | R5: 0.53 | S5: 0.9 | T5: 32.8 | AA5: 2 | AB5: Région ? | AD5: Facteur élec | AH5: 4 | AI5: 0 | AJ5: 36.037775 | AK5: 74.368 | AM5: 1.6214 | AN5: 1.349755 | BC5: 2003-05-29
A6: 5 | B6: De ROUCK - SENERTEC | C6: Dachs HKA 2 F 5.5 | D6: Propane/Propaan | E6: 5.37 | F6: 0.27 | G6: 0.23 | H6: 0.61 | I6: 20520 | J6: 0.084 | K6: 5 | L6: Huile/Olie | M6: 0.55 | N6: 0.9 | O6: 65 | P6: 0.43 | Q6: 0.9 | R6: 0.44 | S6: 0.89 | T6: 65 | AA6: 3 | AB6: 3 | AD6: 5 | AH6: 5 | AJ6: 1.27 | AK6: 5.801 | AM6: 1.6214 | AN6: 1.349755 | BC6: 2003-06-09
A7: 6 | B7: COGENCO - ecoGEN | C7: ecoGEN08-AH | D7: Huile/Olie | E7: 8 | F7: 0.28 | G7: 0.24 | H7: 0.63 | I7: 23950 | J7: 0.3 | K7: 6 | L7: Mazout/Stookolie | M7: 0.55 | N7: 0.9 | O7: 306 | P7: 0.5 | Q7: 0.9 | R7: 0.44 | S7: 0.89 | T7: 45 | AA7: 4 | AK7: 232.54 | AM7: 1.6214 | AN7: 1.349755 | BC7: 2003-06-15
A8: 7 | B8: COGENCO - ecoGEN | C8: ecoGEN08-AG | D8: Gaz/Gas | E8: 8 | F8: 0.267 | G8: 0.227 | H8: 0.6 | I8: 23950 | J8: 0.32 | K8: 7 | L8: Propane/Propaan | M8: 0.55 | N8: 0.9 | O8: 251 | P8: 0.5 | Q8: 0.9 | R8: 0.44 | S8: 0.89 | T8: 45 | AA8: 5 | AB8: Région wallonne | AC8: Waals Gewest | AM8: 1.6214 | AN8: 1.349755 | BC8: 1911-12-25
A9: 8 | B9: COGENCO - ecoGEN | C9: ecoGEN10-AD | D9: Mazout/Stookolie | E9: 10 | F9: 0.275 | G9: 0.235 | H9: 0.605 | I9: 23200 | J9: 0.3 | AA9: 6 | AB9: Région bruxelloise | AC9: Brussels Gewest | AM9: 1.6214 | AN9: 1.349755 | BC9: 2002-04-08
A10: 9 | B10: COGENCO - ecoGEN | C10: ecoGEN12-AH | D10: Huile/Olie | E10: 12 | F10: 0.286 | G10: 0.246 | H10: 0.62 | I10: 27700 | J10: 0.34 | AA10: 7 | AB10: Région flamande | AC10: Vlaams Gewest | AM10: 1.6214 | AN10: 1.349755 | BC10: 2002-05-09
A11: 10 | B11: COGENCO - ecoGEN | C11: ecoGEN12-AG | D11: Gaz/Gas | E11: 12 | F11: 0.293 | G11: 0.253 | H11: 0.634 | I11: 27050 | J11: 0.38 | AA11: 8 | AB11: Prix GSC | AM11: 1.6214 | AN11: 1.349755 | BC11: 2002-05-20
A12: 11 | B12: COGENCO - ecoGEN | C12: ecoGEN14-AD | D12: Mazout/Stookolie | E12: 14 | F12: 0.291 | G12: 0.251 | H12: 0.603 | I12: 26900 | J12: 0.34 | AA12: 9 | AB12: 100 | AM12: 1.6214 | AN12: 1.349755 | BC12: 1911-07-21
A13: 12 | B13: COGENCO - ecoGEN | C13: ecoGEN17-AG | D13: Gaz/Gas | E13: 17 | F13: 0.293 | G13: 0.253 | H13: 0.638 | I13: 34500 | J13: 0.44 | AA13: 10 | AB13: Prix C WKK | AD13: Facteur EU | AM13: 1.6214 | AN13: 1.349755 | BC13: 1911-08-15
A14: 13 | B14: VME - IVECO | C14: FMB-25-KSM | D14: Biogaz/Biogas | E14: 20 | F14: 0.313 | G14: 0.273 | H14: 0.531 | I14: 94260 | J14: 1.89 | AA14: 11 | AB14: 40 | AD14: Vente | AE14: Auto-conso | BC14: 1911-11-01
A15: 14 | B15: VME - IVECO | C15: FMB-25-BSM | D15: Biogaz/Biogas | E15: 20 | F15: 0.313 | G15: 0.273 | H15: 0.5 | I15: 94260 | J15: 1.89 | AA15: 12 | AB15: Niveau tension | AC15: > 200 kV | AD15: 1 | AE15: 0.985 | AG15: > 200 kV | BC15: 1911-11-11
A16: 15 | B16: COGENCO - ecoGEN | C16: ecoGEN20-AH | D16: Huile/Olie | E16: 20 | F16: 0.323 | G16: 0.283 | H16: 0.565 | I16: 34400 | J16: 0.4 | Y16: Minutes jour | AA16: 13 | AB16: 6 | AC16: 100 tot 200 kV | AD16: 0.985 | AE16: 0.965 | AG16: 100 à 200 kV
A17: 16 | B17: COGENCO - ecoGEN | C17: ecoGEN20-AD | D17: Mazout/Stookolie | E17: 20 | F17: 0.323 | G17: 0.283 | H17: 0.566 | I17: 33500 | J17: 0.4 | Y17: - | Z17: Oui | AA17: 14 | AB17: CO2 pour serre | AC17: 50 tot 100 kV | AD17: 0.965 | AE17: 0.945 | AG17: 50 à 100 kV
A18: 17 | B18: COGENCO - ecoGEN | C18: ecoGEN25-AH | D18: Huile/Olie | E18: 25 | F18: 0.324 | G18: 0.284 | H18: 0.57 | I18: 37350 | J18: 0.42 | Y18: 0 | Z18: Non | AA18: 15 | AB18: FALSE | AC18: 15 tot 50 kV | AD18: 0.945 | AE18: 0.925 | AG18: 15 à 50 kV
A19: 18 | B19: COGENCO - ecoGEN | C19: ecoGEN25-AD | D19: Mazout/Stookolie | E19: 25 | F19: 0.322 | G19: 0.282 | H19: 0.567 | I19: 36600 | J19: 0.48 | Y19: 15 | Z19: Ja | AA19: 16 | AB19: Type chaleur | AC19: 0.4 tot 15 kV | AD19: 0.945 | AE19: 0.925 | AG19: 0.4 à 15 kV
A20: 19 | B20: VME - IVECO | C20: FMB-031-GSK | D20: Gaz/Gas | E20: 26 | F20: 0.338 | G20: 0.298 | H20: 0.545 | I20: 91238 | J20: 1.59 | Y20: 30 | Z20: Nee | AA20: 17 | AB20: 4 | AC20: < 0.4 kV | AD20: 0.925 | AE20: 0.86 | AG20: < 0.4 kV
A21: 20 | B21: COGENCO - ecoGEN | C21: ecoGEN30-AG | D21: Biodiesel/Biodiesel | E21: 30 | F21: 0.286 | G21: 0.246 | H21: 0.619 | I21: 43950 | J21: 0.64 | Y21: 45 | AA21: 18
A22: 21 | B22: VME - MAN | C22: FMB-043-KSM | D22: Biogaz/Biogas | E22: 34 | F22: 0.321 | G22: 0.281 | H22: 0.538 | I22: 100192 | J22: 2.2 | AA22: 19 | AB22: 0.85 | AC22: Stoom | AG22: Vapeur
A23: 22 | B23: VME - MAN | C23: FMB-043-BSM | D23: Biogaz/Biogas | E23: 34 | F23: 0.321 | G23: 0.281 | H23: 0.5 | I23: 100192 | J23: 2.2 | AA23: 20 | AB23: 0.9 | AC23: Warm water | AG23: Eau chaude
A24: 23 | B24: COGENCO - ecoGEN | C24: ecoGEN35-AD | D24: Mazout/Stookolie | E24: 35 | F24: 0.356 | G24: 0.316 | H24: 0.53 | I24: 41200 | J24: 0.58 | AA24: 21 | AB24: 0.93 | AC24: Direct firing/lucht voor droogtoepassingen <250°C | AG24: Combustion directe/air pour applications de séchage <250°C
A25: 24 | B25: COGENCO - ecoGEN | C25: ecoGEN48-SG | D25: Gaz/Gas | E25: 48 | F25: 0.333 | G25: 0.293 | H25: 0.535 | I25: 61900 | J25: 0.9 | AA25: 22 | AB25: 0.93 | AC25: Direct firing/lucht voor droogtoepassingen >250°C | AG25: Combustion directe/air pour applications de séchage >250°C
A26: 25 | B26: test | C26: test | D26: Biogaz/Biogas | E26: 50 | F26: 0.3 | G26: 0.3 | H26: 0.15 | I26: 100000 | J26: 6 | AA26: 23
A27: 26 | B27: BUDERUS - MAN | C27: Loganova E0834 - DN 50 | D27: Gaz/Gas | E27: 50 | F27: 0.345 | G27: 0.291 | H27: 0.559 | I27: 77500 | J27: 1.76 | AB27: Traduction en français
A28: 27 | B28: Eneria - MAN | C28: GG50 | D28: Gaz/Gas | E28: 50 | F28: 0.342 | G28: 0.315 | H28: 0.562 | I28: 80000 | J28: 2.2 | AB28: 1 | AC28: 1 = français, 2 = néerlandais
A29: 28 | B29: VME - MAN | C29: FMB-065-GSK | D29: Gaz/Gas | E29: 50 | F29: 0.342 | G29: 0.302 | H29: 0.521 | I29: 102239 | J29: 2.2
A30: 29 | B30: COGENCO - ecoGEN | C30: ecoGEN50-SD | D30: Mazout/Stookolie | E30: 50 | F30: 0.364 | G30: 0.324 | H30: 0.48 | I30: 48400 | J30: 0.74
A31: 30 | B31: VME - MAN | C31: FMB-065-KSM | D31: Biogaz/Biogas | E31: 53 | F31: 0.323 | G31: 0.283 | H31: 0.524 | I31: 105048 | J31: 2.4
A32: 31 | B32: VME - MAN | C32: FMB-065-BSM | D32: Biogaz/Biogas | E32: 53 | F32: 0.323 | G32: 0.283 | H32: 0.488 | I32: 105048 | J32: 2.4
A33: 32 | B33: BUDERUS - MAN | C33: Loganova E0826 - DN 70 | D33: Gaz/Gas | E33: 70 | F33: 0.343 | G33: 0.287 | H33: 0.564 | I33: 81650 | J33: 2.2
A34: 33 | B34: Eneria - MAN | C34: GG70 | D34: Gaz/Gas | E34: 70 | F34: 0.343 | G34: 0.316 | H34: 0.559 | I34: 88000 | J34: 2.5
A35: 34 | B35: VME - MAN | C35: FMB-085-GSK | D35: Gaz/Gas | E35: 70 | F35: 0.347 | G35: 0.307 | H35: 0.525 | I35: 121707 | J35: 2.2
A36: 35 | B36: COGENCO - ecoGEN | C36: ecoGEN70-SD | D36: Mazout/Stookolie | E36: 70 | F36: 0.356 | G36: 0.316 | H36: 0.484 | I36: 59600 | J36: 0.11
A37: 36 | B37: VME - Mercedes | C37: FMB-100-KSM | D37: Biogaz/Biogas | E37: 81 | F37: 0.316 | G37: 0.276 | H37: 0.566 | I37: 125239 | J37: 2.75
A38: 37 | B38: VME - Mercedes | C38: FMB-100-BSM | D38: Biogaz/Biogas | E38: 81 | F38: 0.316 | G38: 0.276 | H38: 0.566 | I38: 125387 | J38: 2.75
A39: 38 | B39: VME - Mercedes | C39: FMB-125-KSM | D39: Biogaz/Biogas | E39: 101 | F39: 0.326 | G39: 0.286 | H39: 0.565 | I39: 135500 | J39: 2.96
A40: 39 | B40: VME - Mercedes | C40: FMB-125-BSM | D40: Biogaz/Biogas | E40: 101 | F40: 0.326 | G40: 0.286 | H40: 0.565 | I40: 135736 | J40: 2.96
A41: 40 | B41: Eneria - MAN | C41: GG104 | D41: Gaz/Gas | E41: 104 | F41: 0.369 | G41: 0.339 | H41: 0.525 | I41: 141450 | J41: 3.4
A42: 41 | B42: VME - MAN | C42: FMB-130-BSM | D42: Biogaz/Biogas | E42: 105 | F42: 0.367 | G42: 0.327 | H42: 0.43 | I42: 147628 | J42: 2.96
A43: 42 | B43: VME - MAN | C43: FMB-130-GSMK | D43: Gaz/Gas | E43: 105 | F43: 0.367 | G43: 0.327 | H43: 0.43 | I43: 147223 | J43: 2.46
A44: 43 | B44: BUDERUS - MAN | C44: Loganova E1306 - DN 100 | D44: Gaz/Gas | E44: 120 | F44: 0.343 | G44: 0.28 | H44: 0.571 | I44: 120000 | J44: 2.268
A45: 44 | B45: VME - Mercedes | C45: FMB-155-GSK | D45: Gaz/Gas | E45: 122 | F45: 0.343 | G45: 0.303 | H45: 0.565 | I45: 129408 | J45: 2.46
A46: 45 | B46: Eneria - MAN | C46: GG130 | D46: Gaz/Gas | E46: 130 | F46: 0.348 | G46: 0.32 | H46: 0.564 | I46: 123000 | J46: 3.4
A47: 46 | B47: Eneria - MAN | C47: GG140 | D47: Gaz/Gas | E47: 140 | F47: 0.35 | G47: 0.322 | H47: 0.553 | I47: 137000 | J47: 3.9
A48: 47 | B48: BUDERUS - MAN | C48: Loganova E2876 - TE 150 | D48: Gaz/Gas | E48: 143 | F48: 0.351 | G48: 0.311 | H48: 0.541 | I48: 137500 | J48: 2.944
A49: 48 | B49: VME - Mercedes | C49: FMB-190-GSK | D49: Gaz/Gas | E49: 150 | F49: 0.35 | G49: 0.31 | H49: 0.552 | I49: 138503 | J49: 2.67
A50: 49 | B50: VME - Mercedes | C50: FMB-200-KSM | D50: Biogaz/Biogas | E50: 160 | F50: 0.355 | G50: 0.315 | H50: 0.532 | I50: 144486 | J50: 3.05
A51: 50 | B51: VME - Mercedes | C51: FMB-215-GSMK | D51: Gaz/Gas | E51: 173 | F51: 0.35 | G51: 0.31 | H51: 0.547 | I51: 145130 | J51: 2.72
A52: 51 | B52: VME - Mercedes | C52: FMB-230-BSM | D52: Biogaz/Biogas | E52: 185 | F52: 0.367 | G52: 0.327 | H52: 0.462 | I52: 159736 | J52: 3.09
A53: 52 | B53: VME - Mercedes | C53: FMB-230-GSMK | D53: Gaz/Gas | E53: 185 | F53: 0.356 | G53: 0.316 | H53: 0.538 | I53: 159239 | J53: 2.74
A54: 53 | B54: Eneria - MAN | C54: GG198 | D54: Gaz/Gas | E54: 198 | F54: 0.368 | G54: 0.339 | H54: 0.533 | I54: 175000 | J54: 3.333
A55: 54 | B55: VME - Mercedes | C55: FMB-250-KSM | D55: Biogaz/Biogas | E55: 200 | F55: 0.351 | G55: 0.311 | H55: 0.515 | I55: 167097 | J55: 3.3
A56: 55 | B56: VME - MAN | C56: FMB-265-RS | D56: Huile/Olie | E56: 215 | F56: 0.3930530165 | G56: 0.374 | H56: 0.4021937843 | I56: 251000 | J56: 4.1
A57: 56 | B57: VME - Mercedes | C57: FMB-270-GSMK | D57: Gaz/Gas | E57: 220 | F57: 0.365 | G57: 0.325 | H57: 0.529 | I57: 170157 | J57: 2.96
A58: 57 | B58: VME - Mercedes | C58: FMB-285-BSM | D58: Biogaz/Biogas | E58: 233 | F58: 0.369 | G58: 0.329 | H58: 0.453 | I58: 180927 | J58: 3.35
A59: 58 | B59: VME - Mercedes | C59: FMB-285-GSMK | D59: Gaz/Gas | E59: 233 | F59: 0.369 | G59: 0.329 | H59: 0.459 | I59: 181041 | J59: 2.98
A60: 59 | B60: Eneria - MAN | C60: GG237 | D60: Gaz/Gas | E60: 237 | F60: 0.354 | G60: 0.326 | H60: 0.555 | I60: 194000 | J60: 3.667
A61: 60 | B61: BUDERUS - MAN | C61: Loganova E2842 - DN 200 | D61: Gaz/Gas | E61: 238 | F61: 0.357 | G61: 0.3 | H61: 0.544 | I61: 184000 | J61: 3.146
A62: 61 | B62: VME - MAN | C62: FMB-325-RS | D62: Huile/Olie | E62: 266 | F62: 0.3689320388 | G62: 0.362 | H62: 0.4174757282 | I62: 265000 | J62: 4.3
A63: 62 | B63: VME - Mercedes | C63: FMB-355-KSM | D63: Biogaz/Biogas | E63: 300 | F63: 0.357 | G63: 0.317 | H63: 0.522 | I63: 190017 | J63: 3.76
A64: 63 | B64: VME - MAN | C64: FMB-400-RS | D64: Huile/Olie | E64: 307 | F64: 0.4023591088 | G64: 0.382 | H64: 0.4325032765 | I64: 280000 | J64: 4.54
A65: 64 | B65: VME - Mercedes | C65: FMB-410-GSMK | D65: Gaz/Gas | E65: 334 | F65: 0.363 | G65: 0.323 | H65: 0.523 | I65: 202438 | J65: 3.41
A66: 65 | B66: VME - Mercedes | C66: FMB-430-BSM | D66: Biogaz/Biogas | E66: 350 | F66: 0.372 | G66: 0.332 | H66: 0.429 | I66: 206535 | J66: 3.83
A67: 66 | B67: VME - Mercedes | C67: FMB-430-GSMK | D67: Gaz/Gas | E67: 350 | F67: 0.374 | G67: 0.334 | H67: 0.48 | I67: 211421 | J67: 3.43
A68: 67 | B68: Eneria - MAN | C68: GG383 | D68: Gaz/Gas | E68: 383 | F68: 0.373 | G68: 0.343 | H68: 0.527 | I68: 225000 | J68: 4.8
A69: 68 | B69: VME - Guascor | C69: VME - FMB-470-BSM | D69: Biogaz/Biogas | E69: 383 | F69: 0.373 | G69: 0.333 | H69: 0.39 | I69: 257197 | J69: 6.6
A70: 69 | B70: VME - MAN | C70: FMB-480-RS | D70: Huile/Olie | E70: 386 | F70: 0.395087001 | G70: 0.383 | H70: 0.4247697032 | I70: 293000 | J70: 4.87
A71: 70 | B71: Eneria - CATERPILLAR | C71: 3508A | D71: Gaz/Gas | E71: 510 | F71: 0.392 | G71: 0.353 | H71: 0.468 | I71: 426000 | J71: 6.429
A72: 71 | B72: VME - Guascor | C72: FMB-710-BSM | D72: Biogaz/Biogas | E72: 578 | F72: 0.372 | G72: 0.332 | H72: 0.393 | I72: 371365 | J72: 8.83
A73: 72 | B73: VME - Guascor | C73: FMB-750-GSMK/H | D73: Gaz/Gas | E73: 609 | F73: 0.375 | G73: 0.335 | H73: 0.536 | I73: 370318 | J73: 8.6
A74: 73 | B74: VME - Guascor | C74: FMB-750-GSMK/N | D74: Gaz/Gas | E74: 609 | F74: 0.391 | G74: 0.351 | H74: 0.385 | I74: 373101 | J74: 8.6
A75: 74 | B75: VME - Guascor | C75: FMB-950-BSM | D75: Biogaz/Biogas | E75: 771 | F75: 0.377 | G75: 0.337 | H75: 0.402 | I75: 428216 | J75: 10.67
A76: 75 | B76: Eneria - CATERPILLAR | C76: 3512A | D76: Gaz/Gas | E76: 772 | F76: 0.378 | G76: 0.34 | H76: 0.476 | I76: 490000 | J76: 8.586
A77: 76 | B77: VME - Guascor | C77: FMB-1000-GSMK/H | D77: Gaz/Gas | E77: 812 | F77: 0.382 | G77: 0.342 | H77: 0.532 | I77: 427483 | J77: 10.46
A78: 77 | B78: VME - Guascor | C78: FMB-1000-GSMK/N | D78: Gaz/Gas | E78: 812 | F78: 0.395 | G78: 0.355 | H78: 0.426 | I78: 430798 | J78: 10.46
A79: 78 | B79: VME - Guascor | C79: FMB-1180-GSMK/N | D79: Gaz/Gas | E79: 958 | F79: 0.392 | G79: 0.352 | H79: 0.457 | I79: 496926 | J79: 15.44
A80: 79 | B80: VME - Guascor | C80: FMB-1180-BSM | D80: Biogaz/Biogas | E80: 958 | F80: 0.393 | G80: 0.353 | H80: 0.393 | I80: 486730 | J80: 15.72
A81: 80 | B81: Eneria - CATERPILLAR | C81: 3516A | D81: Gaz/Gas | E81: 1030 | F81: 0.38 | G81: 0.342 | H81: 0.491 | I81: 579000 | J81: 9.233
A82: 81 | B82: Eneria - CATERPILLAR | C82: 3516B | D82: Gaz/Gas | E82: 1122 | F82: 0.392 | G82: 0.36 | H82: 0.469 | I82: 616000 | J82: 10.919
A83: 82 | B83: Eneria - CATERPILLAR | C83: 3516E | D83: Gaz/Gas | E83: 1367 | F83: 0.399 | G83: 0.367 | H83: 0.446 | I83: 764000 | J83: 12.798
A84: 83 | B84: Eneria - CATERPILLAR | C84: 3520B | D84: Gaz/Gas | E84: 1429 | F84: 0.393 | G84: 0.361 | H84: 0.469 | I84: 744000 | J84: 13.371
A85: 84 | B85: Eneria - CATERPILLAR | C85: 3516E | D85: Gaz/Gas | E85: 1561 | F85: 0.405 | G85: 0.373 | H85: 0.438 | I85: 801000 | J85: 14.613
A86: 85 | B86: Eneria - CATERPILLAR | C86: 3520C | D86: Gaz/Gas | E86: 1958 | F86: 0.4 | G86: 0.38 | H86: 0.457 | I86: 927747 | J86: 18.328
A87: 86 | B87: Eneria - CATERPILLAR | C87: 3612HR | D87: Gaz/Gas | E87: 2724 | F87: 0.398 | G87: 0.366 | H87: 0.437 | I87: 1938600 | J87: 21.687
A88: 87 | B88: Eneria - CATERPILLAR | C88: 3616HR | D88: Gaz/Gas | E88: 2879 | F88: 0.41 | G88: 0.377 | H88: 0.545 | I88: 1938600 | J88: 22.913
A89: 88 | B89: Eneria - CATERPILLAR | C89: 3612HR | D89: Gaz/Gas | E89: 3658 | F89: 0.408 | G89: 0.376 | H89: 0.332 | I89: 2475000 | J89: 29.119
A90: 89 | B90: Eneria - CATERPILLAR | C90: 3616HR | D90: Gaz/Gas | E90: 3847 | F90: 0.413 | G90: 0.38 | H90: 0.421 | I90: 2475000 | J90: 30.622

Sheet Measures
A1: =IF(Param!AB28=1,"Date début","Startdatum") -> Date début | B1: =IF(Param!AB28=1,"kW éléc.","kW elek.") -> kW éléc. | C1: =IF(Param!AB28=1,"kW chaleur","kW therm.") -> kW chaleur
A2: 2009-01-01 | B2: 364 | C2: 70
B3: 360 | C3: 70
B4: 356 | C4: 70
B5: 360 | C5: 70
B6: 356 | C6: 70
B7: 352 | C7: 70
B8: 352 | C8: 70
B9: 352 | C9: 70
B10: 344 | C10: 70
B11: 348 | C11: 70
B12: 348 | C12: 70
B13: 352 | C13: 70
B14: 340 | C14: 70
B15: 348 | C15: 70
B16: 340 | C16: 70
B17: 348 | C17: 70
B18: 344 | C18: 70
B19: 352 | C19: 70
B20: 352 | C20: 70
B21: 356 | C21: 70
B22: 356 | C22: 70
B23: 360 | C23: 70
B24: 360 | C24: 70
B25: 456 | C25: 70
B26: 488 | C26: 70
B27: 488 | C27: 70
B28: 484 | C28: 70
B29: 472 | C29: 70
B30: 476 | C30: 70
B31: 488 | C31: 70
B32: 528 | C32: 70
B33: 552 | C33: 70
B34: 536 | C34: 70
B35: 536 | C35: 70
B36: 540 | C36: 70
B37: 524 | C37: 70
B38: 492 | C38: 70
B39: 476 | C39: 70
B40: 512 | C40: 70
B41: 548 | C41: 70
B42: 556 | C42: 70
B43: 528 | C43: 70
B44: 516 | C44: 70
B45: 504 | C45: 70
B46: 500 | C46: 70
B47: 504 | C47: 70
B48: 532 | C48: 70
B49: 520 | C49: 70
B50: 540 | C50: 70
B51: 544 | C51: 70
B52: 524 | C52: 70
B53: 516 | C53: 70
B54: 460 | C54: 70
B55: 424 | C55: 70
B56: 420 | C56: 70
B57: 456 | C57: 70
B58: 472 | C58: 70
B59: 456 | C59: 70
B60: 472 | C60: 70
B61: 444 | C61: 70
B62: 428 | C62: 70
B63: 428 | C63: 70
B64: 436 | C64: 70
B65: 472 | C65: 70
B66: 448 | C66: 70
B67: 424 | C67: 70
B68: 432 | C68: 70
B69: 436 | C69: 70
B70: 436 | C70: 70
B71: 432 | C71: 70
B72: 424 | C72: 70
B73: 432 | C73: 70
B74: 420 | C74: 70
B75: 420 | C75: 70
B76: 416 | C76: 70
B77: 416 | C77: 70
B78: 404 | C78: 70
B79: 416 | C79: 70
B80: 408 | C80: 70
B81: 408 | C81: 70
B82: 392 | C82: 70
B83: 400 | C83: 70
B84: 388 | C84: 70
B85: 396 | C85: 70
B86: 388 | C86: 70
B87: 384 | C87: 70
B88: 392 | C88: 70
B89: 388 | C89: 70
B90: 380 | C90: 70
B91: 376 | C91: 70
B92: 368 | C92: 70
B93: 364 | C93: 70
B94: 364 | C94: 70
B95: 356 | C95: 70
B96: 368 | C96: 70
B97: 356 | C97: 70
B98: 372 | C98: 70
B99: 360 | C99: 70
B100: 364 | C100: 70
B101: 352 | C101: 70
B102: 352 | C102: 70
B103: 344 | C103: 70
B104: 360 | C104: 70
B105: 344 | C105: 70
B106: 356 | C106: 70
B107: 344 | C107: 70
B108: 344 | C108: 70
B109: 340 | C109: 70
B110: 340 | C110: 70
B111: 336 | C111: 70
B112: 340 | C112: 70
B113: 340 | C113: 70
B114: 340 | C114: 70
B115: 348 | C115: 70
B116: 356 | C116: 70
B117: 352 | C117: 70
B118: 368 | C118: 70
B119: 348 | C119: 70
B120: 436 | C120: 70
B121: 468 | C121: 70
B122: 516 | C122: 70
B123: 528 | C123: 70
B124: 544 | C124: 70
B125: 568 | C125: 70
B126: 592 | C126: 70
B127: 616 | C127: 70
B128: 624 | C128: 70
B129: 664 | C129: 70
B130: 652 | C130: 70
B131: 660 | C131: 70
B132: 696 | C132: 70
B133: 696 | C133: 70
B134: 676 | C134: 70
B135: 648 | C135: 70
B136: 656 | C136: 70
B137: 680 | C137: 70
B138: 672 | C138: 70
B139: 696 | C139: 70
B140: 684 | C140: 70
B141: 640 | C141: 70
B142: 624 | C142: 70
B143: 628 | C143: 70
B144: 652 | C144: 70
B145: 656 | C145: 70
B146: 668 | C146: 70
B147: 672 | C147: 70
B148: 668 | C148: 70
B149: 608 | C149: 70
B150: 584 | C150: 70
B151: 572 | C151: 70
B152: 596 | C152: 70
B153: 592 | C153: 70
B154: 600 | C154: 70
B155: 608 | C155: 70
B156: 576 | C156: 70
B157: 568 | C157: 70
B158: 572 | C158: 70
B159: 548 | C159: 70
B160: 596 | C160: 70
B161: 572 | C161: 70
B162: 536 | C162: 70
B163: 508 | C163: 70
B164: 516 | C164: 70
B165: 508 | C165: 70
B166: 492 | C166: 70
B167: 496 | C167: 70
B168: 496 | C168: 70
B169: 480 | C169: 70
B170: 480 | C170: 70
B171: 484 | C171: 70
B172: 484 | C172: 70
B173: 488 | C173: 70
B174: 460 | C174: 70
B175: 456 | C175: 70
B176: 444 | C176: 70
B177: 432 | C177: 70
B178: 424 | C178: 70
B179: 428 | C179: 70
B180: 416 | C180: 70
B181: 428 | C181: 70
B182: 424 | C182: 70
B183: 416 | C183: 70
B184: 408 | C184: 70
B185: 412 | C185: 70
B186: 420 | C186: 70
B187: 408 | C187: 70
B188: 384 | C188: 70
B189: 388 | C189: 70
B190: 384 | C190: 70
B191: 388 | C191: 70
B192: 384 | C192: 70
B193: 400 | C193: 70
B194: 388 | C194: 70
B195: 372 | C195: 70
B196: 384 | C196: 70
B197: 380 | C197: 70
B198: 384 | C198: 70
B199: 368 | C199: 70
B200: 372 | C200: 70
... 4300 more rows

Sheet Export faisabilité (hidden)
A1: nom du projet | B1: type établissement | C1: P th | D1: P élec | E1: Date | F1: année réf | G1: type techno | H1: volume tampon | I1: heures | J1: part therm | K1: part élec | L1: conso cogen | M1: PCI cogen | N1: litres cogen | O1: gain co2 | P1: nb cv | Q1: gain cv | R1: Kyoto bxl | S1: gain an brut | T1: achat comb | U1: dép entretien | V1: GAN | W1: invest net | X1: taux subside | Y1: invest brut | Z1: TRS | AA1: durée vie éco | AB1: VAN | AC1: TRI | AD1: conso comb avt | AE1: conso élec avt | AF1: conso chauff après | AG1: prod th | AH1: prod élec | AI1: fact tot avt cogen | AJ1: fact comb avt | AK1: fact élec avt | AL1: fact tot après cogen | AM1: fact comb après | AN1: facture élec après | AO1: dont revente | AP1: éco énergie prim | AQ1: taux éco | AR1: charge min cogen | AS1: rend chauff | AT1: durée vie éco | AU1: fact surinvest | AV1: prix comb avt | AW1: taux évol comb | AX1: prix élec avt | AY1: évol élec | AZ1: évol ent | BA1: taux actualisation | BB1: prix vente cv | BC1: BNeC | BD1: P élec min | BE1: P élec max | BF1: pas P simu | BG1: cout tampon | BH1: Rend th nom | BI1: Rend él nom | BJ1: P prim cogen | BK1: Rend th moy | BL1: Rend él moy | BM1: Rend global | BN1: Pertes tampon | BO1: auto-conco élec | BP1: vente élec | BQ1: Montant aide | BR1: Gain fact él | BS1: elec résiduelle | BT1: prix élec résid | BU1: Prix revente él | BV1: Substitution comb | BW1: gain chaleur | BX1: coût comb cogen | BY1: coût h entretien | BZ1: amortissement/an | CA1: amortissement/kWh | CB1: entretien/kWh | CC1: comb ap/kWh | CD1: Comb avt/kWh | CE1: gainCV/kWh | CF1: coût revient él | CG1: coût revient él/kWh | CH1: coût élec avt/kWh | CI1: vente él/kWh | CJ1: Gain el 0 | CK1: Gain chal 0 | CL1: Gain CV 0 | CM1: Dép comb 0 | CN1: Dép ent 0 | CO1: GAN 0 | CP1: Gain el 1 | CQ1: Gain chal 1 | CR1: Gain CV 1 | CS1: Dép comb 1 | CT1: Dép ent 1 | CU1: GAN 1 | CV1: Gain el 2 | CW1: Gain chal 2 | CX1: Gain CV 2 | CY1: Dép comb 2 | CZ1: Dép ent 2 | DA1: GAN 2 | DB1: Gain el 3 | DC1: Gain chal 3 | DD1: Gain CV 3 | DE1: Dép comb 3 | DF1: Dép ent 3 | DG1: GAN 3 | DH1: Gain el 4 | DI1: Gain chal 4 | DJ1: Gain CV 4 | DK1: Dép comb 4 | DL1: Dép ent 4 | DM1: GAN 4 | DN1: Gain el 5 | DO1: Gain chal 5 | DP1: Gain CV 5 | DQ1: Dép comb 5 | DR1: Dép ent 5 | DS1: GAN 5 | DT1: Gain el 6 | DU1: Gain chal 6 | DV1: Gain CV 6 | DW1: Dép comb 6 | DX1: Dép ent 6 | DY1: GAN 6 | DZ1: Gain el 7 | EA1: Gain chal 7 | EB1: Gain CV 7 | EC1: Dép comb 7 | ED1: Dép ent 7 | EE1: GAN 7 | EF1: Gain el 8 | EG1: Gain chal 8 | EH1: Gain CV 8 | EI1: Dép comb 8 | EJ1: Dép ent 8 | EK1: GAN 8 | EL1: Gain el 9 | EM1: Gain chal 9 | EN1: Gain CV 9 | EO1: Dép comb 9 | EP1: Dép ent 9 | EQ1: GAN 9 | ER1: Gain el 10 | ES1: Gain chal 10 | ET1: Gain CV 10 | EU1: Dép comb 10 | EV1: Dép ent 10 | EW1: GAN 10 | EX1: Surconso comb | EY1: part revente/prod | EZ1: rend transfo | FA1: date pied page | FB1: fact élec av vente | FC1: inv total | FD1: date rencontre | FE1: pointe max | FF1: URE | FG1: Station météo | FH1: part auto-conso | FI1: coef co2 comb | FJ1: prix cv | FK1: taux actualisation | FL1: Civlité | FM1: Contact | FN1: Type besoins th | FO1: Description chaufferie | FP1: profil th | FQ1: besoin th résid | FR1: heure avt révision | FS1: kWh gaz PCI | FT1: kWh gaz PCS | FU1: durée av révision | FV1: facture gaz ss URE | FW1: Gain élec Hypothèse: Auto-conso 100% | FX1: Taux CV
A2: =B5 -> le SPW Place de Wallonie | B2: =B6 -> un immeuble de bureaux | C2: =ROUND(OptimumFR!B13,1) -> 11.4 | D2: =ROUND(OptimumFR!B11,1) -> 5 | E2: =TODAY() -> 2016-01-26 | F2: =YEAR(Measures!A2) -> 2009 | G2: =IF(OptimumFR!B10="Gaz","au gaz naturel",IF(OptimumFR!B10="Huile","à l'huile de colza",IF(OptimumFR!B10="Mazout","au mazout",IF(OptimumFR!B10="Biodiesel","au biodiesel",IF(OptimumFR!B10="Biogaz","au biogaz",IF(OptimumFR!B10="Bois","au bois",IF(OptimumFR!B10="Propane","au propane"))))))) -> FALSE | H2: =ROUND(OptimumFR!J44/1000,0) ->  | I2: =ROUND(OptimumFR!B23,0) -> 8760 | J2: =ROUND(OptimumFR!B32/OptimumFR!B30,3)*100 -> 16.6 | K2: =ROUND(OptimumFR!B41/OptimumFR!B28,3)*100 -> 0.9 | L2: =ROUND(OptimumFR!B31,0) -> 160189 | M2: 9.46 | N2: =ROUND(L2/M2,0) -> 16933 | O2: =IF(OptimumFR!F34="Région bruxelloise",ROUND(P2*217,0),ROUND(P2*456,0)) -> 7752 | P2: =ROUND(OptimumFR!B77/OptimumFR!F35,0) -> 17 | Q2: =ROUND(OptimumFR!B77,0) -> 1299 | R2: =ROUND(O2/312,0) -> 25 | S2: =ROUND(OptimumFR!B79+OptimumFR!B73+OptimumFR!B51-OptimumFR!B62+OptimumFR!B34/1000*OptimumFR!F51,0) -> -41920 | T2: =ROUND(OptimumFR!B31/1000*OptimumFR!F53,0) -> 5254 | U2: =ROUND(OptimumFR!B66,0) -> 1927 | V2: =ROUND(OptimumFR!B79,0) -> -23901 | W2: =ROUND(OptimumFR!B87,0) -> 24425 | X2: =ROUND(OptimumFR!B85,2)*100 -> 3053186 | Y2: =ROUND(W2/(1-X2/100),0) -> -1 | Z2: =ROUND(OptimumFR!B89,1) ->  | AA2: =ROUND(MIN(15,VALUE(Param!AW2)/OptimumFR!B23),0) -> 6 | AB2: =ROUND(OptimumFR!B91,0) -> -152705 | AC2: =ROUND(OptimumFR!B92,3)*100 ->  | AD2: =ROUND(OptimumFR!B29,0) -> 766500 | AE2: =ROUND(OptimumFR!B28,0) -> 4956554 | AF2: =ROUND(OptimumFR!B35/OptimumFR!B5,0) -> 638950 | AG2: =ROUND(OptimumFR!B32,0) -> 102040 | AH2: =ROUND(OptimumFR!B38,0) -> 43799 | AI2: =ROUND(OptimumFR!B55,0) -> 570362 | AJ2: =ROUND(OptimumFR!B53,0) -> 25141 | AK2: =ROUND(OptimumFR!B51,0) -> 545221 | AL2: =ROUND(OptimumFR!B68-OptimumFR!B73-OptimumFR!B77,0) -> 594263 | AM2: =ROUND(OptimumFR!B64,0) -> 26212 | AN2: =ROUND(OptimumFR!B62,0) -> 567423 | AO2: =ROUND(OptimumFR!B73,0) -> 0 | AP2: =ROUND((OptimumFR!B38/0.55+OptimumFR!B32/0.9-OptimumFR!B31),0) -> 32823 | AQ2: =ROUND(AP2/(OptimumFR!B38/0.55+OptimumFR!B32/0.9),3)*100 -> 17 | AR2: =ROUND(OptimumFR!J31,3)*100 -> 60 | AS2: =ROUND(OptimumFR!B5,3)*100 -> 80 | AT2: =ROUND(VALUE(Param!AW2),0) -> 50000 | AU2: 10 | AV2: =ROUND(OptimumFR!F51,1) -> 32.8 | AW2: =ROUND(Param!AY2,3)*100 -> 3 | AX2: =ROUND(OptimumFR!F42,0) -> 110 | AY2: =ROUND(VALUE(Param!AX2),3)*100 -> 3 | AZ2: =ROUND(Param!AZ2*100,3) -> 2 | BA2: =ROUND(VALUE(Param!BA2),3)*100 -> 5 | BB2: =ROUND(OptimumFR!F35,0) -> 75 | BC2: =ROUND(OptimumFR!B30,0) -> 613200 | BD2: =ROUND(ResultsFR!A2,0) -> 5 | BE2: =ROUND(MAX(ResultsFR!A2:A50),0) -> 68 | BF2: =ROUND(ResultsFR!A3-ResultsFR!A2,0) -> 7 | BG2: =ROUND(OptimumFR!B106*(1+OptimumFR!B86)*(1-OptimumFR!B85),0) ->  | BH2: =ROUND(OptimumFR!B16,3)*100 -> 63.7 | BI2: =ROUND(OptimumFR!B14,3)*100 -> 27.9 | BJ2: =ROUND(OptimumFR!B11/OptimumFR!B14,0) -> 18 | BK2: =ROUND(OptimumFR!B19,3)*100 -> 63.7 | BL2: =ROUND(OptimumFR!B17,3)*100 -> 27.3 | BM2: =ROUND(OptimumFR!B21,3)*100 -> 91 | BN2: =ROUND(OptimumFR!B110,0) ->  | BO2: =ROUND(OptimumFR!B41,0) -> 43799 | BP2: =ROUND(OptimumFR!B40,0) -> 0 | BQ2: =ROUND(OptimumFR!B85*OptimumFR!B84*(1+OptimumFR!B86),0) -> 74587761 | BR2: =ROUND(OptimumFR!B51-OptimumFR!B62,0) -> -22202 | BS2: =ROUND(OptimumFR!B42,0) -> 4912755 | BT2: =ROUND(OptimumFR!F43,1) -> 115.5 | BU2: =ROUND(OptimumFR!F44,1) -> 40 | BV2: =ROUND(OptimumFR!B29-OptimumFR!B36,0) -> 127550 | BW2: =ROUND(BV2/1000*OptimumFR!F51,0) -> 4184 | BX2: =ROUND(OptimumFR!F53,1) -> 32.8 | BY2: =ROUND(OptimumFR!B66/OptimumFR!B23,2) -> 0.22 | BZ2: =ROUND(OptimumFR!B87/'Export faisabilité'!AA2,0) -> 4071 | CA2: =ROUND(BZ2/OptimumFR!B38*100,1) -> 9.3 | CB2: =ROUND(OptimumFR!B66/OptimumFR!B38*100,1) -> 4.4 | CC2: =ROUND(OptimumFR!B64/OptimumFR!B38*100,1) -> 59.8 | CD2: =ROUND(OptimumFR!B53/OptimumFR!B38*100,1) -> 57.4 | CE2: =ROUND(OptimumFR!B77/OptimumFR!B38*100,1) -> 3 | CF2: =ROUND(BZ2+U2+OptimumFR!B64-OptimumFR!B53-OptimumFR!B77,0) -> 5770 | CG2: =ROUND(CA2+CB2+CC2-CD2-CE2,1) -> 13.1 | CH2: =ROUND(OptimumFR!F42/10,1) -> 11 | CI2: =ROUND(OptimumFR!F44/10,1) -> 4 | CJ2: =OptimumFR!B51-OptimumFR!B62+OptimumFR!B73 -> -22202.29138 | CK2: =BW2 -> 4184 | CL2: =Q2 -> 1299 | CM2: =BX2*L2/1000 -> 5254.1992 | CN2: =U2 -> 1927 | CO2: =CJ2+CK2+CL2-CM2-CN2 -> -23900.49058 | CP2: =$CJ$2*(1+$AY$2/100)^1 -> -22868.36012 | CQ2: =$CK$2*(1+$AW$2/100)^1 -> 4309.52 | CR2: =$CL$2 -> 1299 | CS2: =$CM$2*(1+$AW$2/100)^1 -> 5411.825176 | CT2: =$CN$2*(1+$AZ$2/100)^1 -> 1965.54 | CU2: =CP2+CQ2+CR2-CS2-CT2 -> -24637.20529 | CV2: =$CJ$2*(1+$AY$2/100/100)^2 -> -22215.61475 | CW2: =$CK$2*(1+$AW$2/100)^2 -> 4438.8056 | CX2: =$CL$2 -> 1299 | CY2: =$CM$2*(1+$AW$2/100)^2 -> 5574.179931 | CZ2: =$CN$2*(1+$AZ$2/100)^2 -> 2004.8508 | DA2: =CV2+CW2+CX2-CY2-CZ2 -> -24056.83988 | DB2: =$CJ$2*(1+$AY$2/100/100)^3 -> -22222.27943 | DC2: =$CK$2*(1+$AW$2/100)^3 -> 4571.969768 | DD2: =$CL$2 -> 1299 | DE2: =$CM$2*(1+$AW$2/100)^3 -> 5741.405329 | DF2: =$CN$2*(1+$AZ$2/100)^3 -> 2044.947816 | DG2: =DB2+DC2+DD2-DE2-DF2 -> -24137.66281 | DH2: =$CJ$2*(1+$AY$2/100)^4 -> -24988.87454 | DI2: =$CK$2*(1+$AW$2/100)^4 -> 4709.128861 | DJ2: =$CL$2 -> 1299 | DK2: =$CM$2*(1+$AW$2/100)^4 -> 5913.647489 | DL2: =$CN$2*(1+$AZ$2/100)^4 -> 2085.846772 | DM2: =DH2+DI2+DJ2-DK2-DL2 -> -26980.23995 | DN2: =$CJ$2*(1+$AY$2/100)^5 -> -25738.54078 | DO2: =$CK$2*(1+$AW$2/100)^5 -> 4850.402727 | DP2: =$CL$2 -> 1299 | DQ2: =$CM$2*(1+$AW$2/100)^5 -> 6091.056914 | DR2: =$CN$2*(1+$AZ$2/100)^5 -> 2127.563708 | DS2: =DN2+DO2+DP2-DQ2-DR2 -> -27807.75868 | DT2: =$CJ$2*(1+$AY$2/100)^6 -> -26510.697 | DU2: =$CK$2*(1+$AW$2/100)^6 -> 4995.914809 | DV2: =$CL$2 -> 1299 | DW2: =$CM$2*(1+$AW$2/100)^6 -> 6273.788621 | DX2: =$CN$2*(1+$AZ$2/100)^6 -> 2170.114982 | DY2: =DT2+DU2+DV2-DW2-DX2 -> -28659.6858 | DZ2: =$CJ$2*(1+$AY$2/100)^7 -> -27306.01791 | EA2: =$CK$2*(1+$AW$2/100)^7 -> 5145.792253 | EB2: =$CL$2 -> 1299 | EC2: =$CM$2*(1+$AW$2/100)^7 -> 6462.00228 | ED2: =$CN$2*(1+$AZ$2/100)^7 -> 2213.517282 | EE2: =DZ2+EA2+EB2-EC2-ED2 -> -29536.74522 | EF2: =$CJ$2*(1+$AY$2/100)^8 -> -28125.19845 | EG2: =$CK$2*(1+$AW$2/100)^8 -> 5300.166021 | EH2: =$CL$2 -> 1299 | EI2: =$CM$2*(1+$AW$2/100)^8 -> 6655.862348 | EJ2: =$CN$2*(1+$AZ$2/100)^8 -> 2257.787627 | EK2: =EF2+EG2+EH2-EI2-EJ2 -> -30439.68241 | EL2: =$CJ$2*(1+$AY$2/100)^9 -> -28968.95441 | EM2: =$CK$2*(1+$AW$2/100)^9 -> 5459.171001 | EN2: =$CL$2 -> 1299 | EO2: =$CM$2*(1+$AW$2/100)^9 -> 6855.538219 | EP2: =$CN$2*(1+$AZ$2/100)^9 -> 2302.94338 | EQ2: =EL2+EM2+EN2-EO2-EP2 -> -31369.265 | ER2: =$CJ$2*(1+$AY$2/100)^10 -> -29838.02304 | ES2: =$CK$2*(1+$AW$2/100)^10 -> 5622.946131 | ET2: =$CL$2 -> 1299 | EU2: =$CM$2*(1+$AW$2/100)^10 -> 7061.204365 | EV2: =$CN$2*(1+$AZ$2/100)^10 -> 2349.002247 | EW2: =ER2+ES2+ET2-EU2-EV2 -> -32326.28352 | EX2: =ROUND(OptimumFR!B31-OptimumFR!B34,0) -> 32638 | EY2: =ROUND(BP2/OptimumFR!B38,3)*100 -> 0 | EZ2: =ROUND(OptimumFR!B38/'Export faisabilité'!EX2,3)*100 -> 134.2 | FA2: =E2 -> 2016-01-26 | FB2: =ROUND(OptimumFR!B62-OptimumFR!B73,0) -> 567423 | FC2: =ROUND(Y2*(1-AU2/100),0) -> -1 | FD2: =B7 -> 30 février 2009 | FE2: =ROUND(MAX(Measures!B2:B34766),0) -> 928 | FF2: =ROUND(B14*100,0) -> 10 | FG2: =B10 -> Malonne | FH2: =ROUND(BO2/AH2*100,1) -> 100 | FI2: =IF(OptimumFR!B10="Gaz",Param!O5,IF(OptimumFR!B10="Huile",Param!O6,IF(OptimumFR!B10="Mazout",Param!O7,IF(OptimumFR!B10="Biodiesel",Param!O2,IF(OptimumFR!B10="Biogaz",Param!O3,IF(OptimumFR!B10="Bois",Param!O4,IF(OptimumFR!B10="Propane",Param!O8))))))) -> FALSE | FJ2: =OptimumFR!F35 -> 75 | FK2: =Param!BA2 -> 0.05 | FL2: =B8 -> Monsieur | FM2: =B9 -> Alex Dubuisson | FN2: =B11 -> les besoins en eau chaude sanitaire, en chauffage par eau chaude et … | FO2: =B12 -> 5 chaudières réparties en 3 chaufferies distinctes. | FP2: =IF(ISBLANK(B16),B17,B16) -> de type bureaux (A) | FQ2: =OptimumFR!B35 -> 511159.9014 | FR2: =Param!AW2 -> 50000 | FS2: =AD2/(1-FF2/100) -> 851666.6667 | FT2: =FS2/0.902 -> 944198.0783 | FU2: =ROUND(Param!AW2/'Export faisabilité'!I2,0) -> 6 | FV2: =AJ2/(1-B14) -> 27934.44444 | FW2: =AH2*BT2/1000 -> 5058.7845 | FX2: =ROUND(OptimumFR!B76,2) -> 0.4
A4: Données à compléter pour un rapport complet
A5: Nom du projet/établissement (avec article) | B5: le SPW Place de Wallonie
A6: Type de l'établissement | B6: un immeuble de bureaux
A7: Date de la rencontre | B7: 30 février 2009
A8: Civilité de la personne de contact | B8: Monsieur
A9: Personne de contact (prénom et nom) | B9: Alex Dubuisson
A10: Station météo considérée | B10: Malonne
A11: Type besoins thermiques | B11: les besoins en eau chaude sanitaire, en chauffage par eau chaude et …
A12: Description de la Chaufferie | B12: 5 chaudières réparties en 3 chaufferies distinctes.
A14: Taux URE | B14: 0.1
A15: Facteur émission CO2 de la cogénération | B15: 251 | C15: kg/MWhPCI
A16: Type de profil considéré ou … | B16: de type bureaux (A)
A17: … dates de campagne de mesures | B17: entre le 12 et le 25 novembre 2008

Sheet Feuil1
